{"text_format":"1","workbook":"xlsx","n_sheets":16,"sheets":["Start Here","Network","IOM Device","IOM Device - Energy Meter","SZ - Smart Equipment","SZ - 3rd Party Equipment","MZ- Zone Coordinator","MZ- Smart Equipment","MZ- 3rd Party Units","MZ- VAV Zones","MZ - COBP Zones","MZ- Bypass Damper","Adv. Application Controller","Fan Coil Units","Lighting","BOM"],"not_rendered":{"charts":0,"images":57,"macros":1,"external_links":0,"defined_names":7,"comments":0,"pivot_tables":0},"unopened":[],"bounds":{"document_bytes":16777216,"sheet_cells":100000,"rows_first":2000,"rows_last":500,"rows_between":2000,"halvings":0,"cell_chars":16384,"cell_head_chars":4096},"cells_cut":0,"cells_raw":0,"read":"whole","date_system":"1900"}

{"sheet":"Start Here","index":0,"n_rows":17,"n_cols":23,"rows_kept":17,"cut":false,"hidden":false,"merged":[]}
[]
[null,null,null,null,null,null,null,null,null,"Estimating Tool",null,null,null,null,null,null,null,null,null,null,null,null,"To start a new quote click on \"Clear All\""]
[]
[]
[]
[null,null,null,null,null,null,null,null,null,null,null,null,null,null,null,null,null,null,null,null,null,null,"Link to Verasys videos"]
[]
[]
[null,null,null,null,null,null,null,null,null,null,null,null,null,null,null,null,null,null,null,null,null,null,"Link to www.verasyscontrols.com"]
[]
[]
[null,null,null,null,null,null,null,null,null,null,null,null,null,null,null,null,null,null,null,null,null,null,"Link to Solution Navigator"]
[]
[]
[]
[]
[null,null,null,null,null,null,null,null,null,null,null,null,null,null,null,null,null,null,null,null,null,null,"Link to Verasys online training"]

{"sheet":"Network","index":1,"n_rows":40,"n_cols":7,"rows_kept":40,"cut":false,"hidden":false,"merged":[[1,1,1,3],[3,1,3,2],[17,1,17,2],[12,1,12,2],[27,1,27,2]]}
[]
[null,"Verasys Network Devices"]
[]
[null,"Smart Building Hub"]
[null,"JCI Part Numbers","Description","Qty"]
[null,"LC-SBH300-0","Verasys Smart Building Hub (with power supply & Wi-Fi adapter)",0]
[null,"LC-SBH300-0C","Verasys Smart Building Hub with IGC-150 Cell Modem (with power supply & Wi-Fi adapter)",0]
[null,"LC-SBH300-0LA","Verasys Smart Building Hub (Latin America)",0]
[null,"LC-SBHPNL-01","Verasys Smart Building Hub within NEMA 1 Enclosure",0]
[null,"LC-SBHPNL-01C","Verasys Smart Building Hub within NEMA 1 Enclosure with IGC-1500 Cell Modem",0]
[null,"LC-ENT100-01","1 Year License Renewal for Verasys Enterprise",0]
[]
[null,"Smart Building Hub Accessories"]
[null,"JCI Part Numbers","Description","Qty"]
[null,"ACC-PWRKIT-1A24","Verasys LC-SBH200-0 Power Supply (Comes with SBH)",0]
[null,"ACC-WIFIKIT-0DU","Verasys LC-SBH200-0 USB Wi-Fi Stick (Comes with SBH)",0]
[null,null,null,0]
[null,"Network Accessories"]
[null,"JCI Part Numbers","Description","Qty"]
[null,"4683-TTM-3F","RS-485 Repeater (Needed if you have more than 50 devices or exceed 4,000ft-Max 2 repeaters)",0]
[null,"MS-BACEOL-0","End of line Terminator (Used on a 3rd party device)",0]
[null,"CBL-22/3-FC-PLN","System/Zone Bus Cable 22-3C Shielded Plenum Wire",0]
[null,"CBL-22/3-FC-PVC ","System/Zone Bus Cable 22-3C Shielded NonPlenum Wire",0]
[null,"CBL-22/2P-SAPLN","Sensor Bus Cable 22-2P Shielded Plenum Wire ",0]
[null,"CBL-22/2P-SAPVC","Sensor Bus Cable 22-2P Shielded NonPlenum Wire",0]
[null,"UPSPNL550-0","550 VA/330W Power System Battery Backup and Surge Protection",0]
[]
[null,"Wireless",null,null,null,null,"*Wireless is only as good as the environment you place it in.  If you put a wireless device inside a metal enclosure it will diminish it’s transmission range"]
[null,"JCI Part Numbers","Description","Qty",null,null,"*Mount a TMR within range of at least 2 other TMR devices for multiple hops back to the TMC.  For best install results mount a TMR with line of sight of other TMRs"]
[null,"LC-TMR100-0 ","TMR (Transparent MS/TP Router-Max 35 devices connected to one Coordinator)",0,null,null,"* You need to be running 4.2.97 or newer firmware on your SBH for it to properly work with the TMR"]
[null,"LC-TMRKIT-0","TMR Weatherproof Enclosure",0,null,null,"*LC-TMR100-0 is a single part # that can be used as a coordinator, router, or repeater"]
[null,"ZFR-SSTBAT-0","TMR Battery Pack (For a test kit order 2) LC-TMR100-0 & 2) of these battery packs)",0,null,null,"*When you plug a TMR into an SBH or VZC (Zone Bus) RJ12 Port, it will auto configure the TMR as a coordinator (TMC)"]
[null,"ZFR-CBLEXT-1","10 foot RJ-12 cable (Connects the TMR to a controller or SBH)",0,null,null,"*You need one TMC per wireless bus.  A TMC can talk to a max of 35 TMRs. A 2nd TMc can be added to a Verasys System Bus if external power is provided the TMC & the PAN ID is adjusted."]
[null,null,null,null,null,null,"*You can have both wired & wireless devices connected the SBH"]
[null,null,null,null,null,null,"*Each TMR needs to have the same Area & Pan Address as the TMC it wants to connect to.  You can use the default address from the factory 0-0-0.  You are only required to change the PAN ID if you have a Zone Bus or have over 35 wireless devices."]
[null,null,null,null,null,null,"*You can have more than 1 wireless bus.  Each bus has to have a unique pan & area address"]
[null,null,null,null,null,null,"*If you mount the TMR outside you will need a LC-TMRKIT-0 weatherproof enclosure"]
[null,null,null,null,null,null,"* A TMR can be connected to 3rd party equipment that talks BACnet MS\\TP"]
[null,null,null,null,null,null,"*No batteries needed...the TMR draws power from the controller it’s connected to "]
[null,null,null,null,null,null,"* You can wire a device to a TMR or if your controller has an RJ12 Sensor Bus jack you can use an RJ12 jumper cable"]

{"sheet":"IOM Device","index":2,"n_rows":71,"n_cols":8,"rows_kept":71,"cut":false,"hidden":false,"merged":[[1,1,1,3],[8,1,8,3],[3,1,3,3],[36,1,36,3],[63,1,63,3]]}
[]
[null,"Input\\Output Module"]
[]
[null,"IOM Device"]
[null,"JCI Part Numbers","Description","Qty"]
[null,"LC-VAC1002-0","Verasys Input Output Configurable Controller (4 Binary Inputs, 5 Analog Inputs, 9 Binary Outputs per IOM)",0]
[null,"LC-IOP200-0","Verasys Panel Enclosure with Input Output Configurable Controller and Power, 16 in W x 20 in H x 6-5/8 in D",0]
[]
[null,"IOM Accessories: Hardwired Input and Output Devices"]
[null,"JCI Part Numbers","Description","Qty"]
[null,"Y65T42-0","Transformer 120/208/240 to 24V XFR 40VA",0]
[null,"TE-68NT-0N00S","Wall temperature sensor, 1k ohm, nickel with temperature occupancy button (32F to 131F)",0]
[null,"NS-WALLPLATE-0","Adapts a TE-6800 Sensor (TE-68NT-0N00S) to a standard 80 x 120 mm wallbox",0]
[null,"TE-6314P-1","1K ohm Wall Temp Sensor (-50F to 122F)",0]
[null,"TE-1800-9600","Wall Mounting Kit for TE-6300 (TE-6314P-1) stainless steel finish",0]
[null,"TE-6311M-1","8\" Duct Sensor Metal Enclosure, Nickel",0]
[null,"TE-6313P-1","Outside Air Sensor, Nickel",0]
[null,"HE-68N3-0N00WS","Wall Mount Humidity Transmitter w Temp Sensor (3%)",0]
[null,"HE-68P3-0N000","Outdoor Humidity Sensor (3%)",0]
[null,"HE-69130NP-0","Duct Humidity Sensor w Temp Sensor (3%)",0]
[null,"CD-W00-00-2U","CO2 sensor 0-2000ppm",0]
[null,"MK7-B-CR-VTI","Outdoor Light Level Sensor, 0-250 Ft Candles",0]
[null,"DPT2090-25G","Pressure Sensor, Gage, 25 PSI, 0-5VDC, 0.25%",0]
[null,"TBG16A-600R","Steam Trap Assembly (Pig Tail)",0]
[null,"DP1400X1B11D","Differential Pressure Sensor -1 to 1 in WC, 0-5VDC (Used for Building Pressure)",0]
[null,"DP140X25U11D","Differential Pressure Sensor -.25 to .25 in WC, 0-5VDC (Used for Building Pressure)",0]
[null,"RLD-134A","Refrigerant Leak Detector for R-134A refrigerant. 0-5V, 0-1000PPM",0]
[null,"CSDSC-C50100L0","Current Switch Device Self Calibrating, 100A Max, No Relay",0]
[null,"CSDSC-C50100L1","Current Switch Device, Self Calibrating, 100A Max with 24v Relay (10A)",0]
[null,"CSDECM-C35200L0","Current Switch Device, Manual Calibrating, 200A Max, No Relay",0]
[null,"CSDECM-C35200L1","Current Switch Device, Manual Calibrating, 200A Max with24v Relay (10A)",0]
[null,"RR10NN","SPDT 10-30VDC/24VAC, 120VAC 10A",0]
[null,"RR10YN","SPDT 10-30VDC/24VAC, 120VAC 10A N.O. 1A @ 30VAC/DC, 0.3A TRIP",0]
[null,"RR10NY","SPST N.O. 10-30VDC/24VAC, 120VAC 10A  HOA",0]
[null,"RR10YY","SPST N.O. 10-30VDC/24VAC, 120VAC 10A = N.O. 1A @ 30VAC/DC, 0.3A TRIP HOA",0]
[]
[null,"IOM Accessories: Hardwired Zone NS Sensors"]
[null,"JCI Part Numbers","Description","Qty"]
[null,"NSB8BTN340-0","Temp, Color Display, Setpoint, White, Logo",0]
[null,"NSB8BTN341-0","Temp, Color Display, Setpoint, White, No Logo",0]
[null,"NSB8BTN240-0","Temp, Monochrome Display, Setpoint, White, Logo",0]
[null,"NSB8BTN242-0","Temp, Monochrome Display, Setpoint, Black, Logo",0]
[null,"NSB8BTN241-0","Temp, Monochrome Display, Setpoint, White, No Logo",0]
[null,"NSB8BTN040-0","Temp, No Display, White, Logo",0]
[null,"NSB8BTN041-0","Temp, No Display, White, No Logo",0]
[null,"NSB8BTN140-0","Temp, No Display\\Warmer\\Cooler, White, Logo",0]
[null,"NSB8BTN142-0","Temp, No Display\\Warmer\\Cooler, Black, Logo",0]
[null,"NSB8BTN141-0","Temp, No Display\\Warmer\\Cooler, White, No Logo",0]
[null,"NSB8BTC340-0","Temp, CO2, Color Display, White Logo",0]
[null,"NSB8BTC341-0","Temp, CO2, Color Display, White No Logo",0]
[null,"NSB8BHN340-0","Temp, 3%RH, Color Display, White, Logo",0]
[null,"NSB8BHN341-0","Temp, 3%RH, Color Display, White, No Logo",0]
[null,"NSB8BHN240-0","Temp, 3%RH, Monochrome Display, White, Logo",0]
[null,"NSB8BHN242-0","Temp, 3%RH, Monochrome Display, Black, Logo",0]
[null,"NSB8BHN241-0","Temp, 3%RH, Monochrome Display, White, No Logo",0]
[null,"NSB8BHN340-0","Temp, 3%RH, Color Display, White Logo",0]
[null,"NSB8BHN341-0","Temp, 3%RH, Color Display, White No Logo",0]
[null,"NSB8BHC240-0","Temp, 3%RH, CO2, Monochrome Display, Setpoint, White, Logo",0]
[null,"NSB8BHC242-0","Temp, 3%RH, CO2, Monochrome Display, Setpoint, Black, Logo",0]
[null,"NSB8BHC241-0","Temp, 3%RH, CO2, Monochrome Display, Setpoint, Black, No Logo",0]
[null,"NSB8BHC340-0","Temp, 3%RH, CO2, Color Display, Setpoint, White, Logo",0]
[null,"NSB8BHC341-0","Temp, 3%RH, CO2, Color Display, Setpoint, White, No Logo",0]
[]
[null,"IOM Accessories: Wireless Zone NS Sensors"]
[null,"JCI Part Numbers","Description","Qty"]
[null,"WRZ-7860-0","Wireless Receiver, One to Many Sensors (REQUIRED IF CONNECTING WIRELESS SENSORS TO VAC1002)",0,null,null,null,"WRZ Wireless Technical Bulletin"]
[null,"ZFR-CBLEXT-0","RJ12 Extension Cable 10\" for the WRZ-7860-0. (Used to plug into Sensor Bus and an extend outside controller panel).",0]
[null,"WRZ-STR0000-2","Wireless Refrigerator/Freezer Temperature Transmitter",0]
[null,"WRZ-RMT10K-2","Wireless Room Temperature Sensor Transmitter for Remote 10K Temperature Probes",0]
[null,"WRZ-TTR0000-2","Wireless Room Temperature Sensor Transmitter with Battery Level/Signal Strength LED, No Setpoint Adjustment",0]
[null,"WRZ-THN0000-2","Wireless Room Temperature and Humidity Sensor Transmitter with Battery Level/Signal Strength LED ",0,null,null,null,"WRZ Wireless installation Guide"]

{"sheet":"IOM Device - Energy Meter","index":3,"n_rows":34,"n_cols":10,"rows_kept":34,"cut":false,"hidden":false,"merged":[[1,0,2,11],[4,0,5,11]]}
[]
["Verasys IOM Energy Meter Part Number Creation"]
[]
[]
["Note: Energy meter part numbers are created by selecting the # of Phases, Amps, and length of the lead. EMC meters are the only meters supported on the Verasys IOM.  Select each \"?\" & quantity to create your part #."]
[]
[]
["#","Meter Style","Phase","CVT Amp","CVT Lead Length","Part #","Qty",null,"*The power meter has 2 pulse inputs that can be used for gas & water meters"]
[1,"SENVA-01-EMC","?","?","?",{"$f":"CONCATENATE(B9,\"-\",C9,\"-\",D9,\"-\",E9)","v":"SENVA-01-EMC-?-?-?"},0,null,"*The power meter can attach to the sensor bus of a VAC with IOM app installed on it"]
[2,"SENVA-01-EMC","?","?","?",{"$f":"CONCATENATE(B10,\"-\",C10,\"-\",D10,\"-\",E10)","v":"SENVA-01-EMC-?-?-?"},0,null,"*The power meter can also be placed on the FC Bus & discovered as a 3rd party BACnet device"]
[3,"SENVA-01-EMC","?","?","?","SENVA-01-EMC-?-?-?",0]
[4,"SENVA-01-EMC","?","?","?","SENVA-01-EMC-?-?-?",0,null,null,"How to add an Emcomm meter to an IOM"]
[5,"SENVA-01-EMC","?","?","?","SENVA-01-EMC-?-?-?",0]
[6,"SENVA-01-EMC","?","?","?","SENVA-01-EMC-?-?-?",0]
[7,"SENVA-01-EMC","?","?","?","SENVA-01-EMC-?-?-?",0,null,null,"PDF files for the Emcomm meter"]
[8,"SENVA-01-EMC","?","?","?","SENVA-01-EMC-?-?-?",0]
[]
[null,null,"Phase","Info",null,null,null,null,null,"Pre-built profile for the Emcomm if you connect it to the FC bus"]
[null,null,"3N","3 Phase No Fuse"]
[null,null,"2N","2 Phase No Fuse"]
[null,null,null,null,null,null,null,null,null,"Emcomm wiring diagram"]
[null,null,"CVT Amp","Info"]
[null,null,"03S","300 Amp 9\" Loop"]
[null,null,"08S","800 Amp 9\" Loop"]
[null,null,"08M","800 Amp 15\" Loop"]
[null,null,"15S","1500 Amp 9\" Loop"]
[null,null,"15M","1500 Amp 15\" Loop"]
[null,null,"24M","2400 Amp 15\" Loop"]
[null,null,"24L","2400 Amp 24\" Loop"]
[null,null,"60G","6000 Amp 36\" Loop"]
[]
[null,null,"Length","Lead Length"]
[null,null,3,"3 Feet"]
[null,null,10,"10 Feet"]

{"sheet":"SZ - Smart Equipment","index":4,"n_rows":34,"n_cols":32,"rows_kept":34,"cut":false,"hidden":false,"merged":[[1,1,2,3],[4,1,4,3],[31,1,31,3]]}
[]
[null,"Single Zone Smart Equipment Selection Page"]
[]
[]
[null,"NS Sensors (One sensor is required & you can have up to 8 averaging sensors on a zone bus)"]
[null,"JCI Part Numbers","Description","Qty"]
[null,"NSB8BTN340-0","Temp, Color Display, Setpoint, White, Logo",0]
[null,"NSB8BTN341-0","Temp, Color Display, Setpoint, White, No Logo",0]
[null,"NSB8BTN240-0","Temp, Monochrome Display, Setpoint, White, Logo",0]
[null,"NSB8BTN242-0","Temp, Monochrome Display, Setpoint, Black, Logo",0]
[null,"NSB8BTN241-0","Temp, Monochrome Display, Setpoint, White, No Logo",0]
[null,"NSB8BTN040-0","Temp, No Display, White, Logo",0]
[null,"NSB8BTN041-0","Temp, No Display, White, No Logo",0]
[null,"NSB8BTN140-0","Temp, No Display\\Warmer\\Cooler, White, Logo",0]
[null,"NSB8BTN142-0","Temp, No Display\\Warmer\\Cooler, Black, Logo",0]
[null,"NSB8BTN141-0","Temp, No Display\\Warmer\\Cooler, White, No Logo",0]
[null,"NSB8BTC340-0","Temp, CO2, Color Display, White Logo",0]
[null,"NSB8BTC341-0","Temp, CO2, Color Display, White No Logo",0]
[null,"NSB8BHN340-0","Temp, 3%RH, Color Display, White, Logo",0]
[null,"NSB8BHN341-0","Temp, 3%RH, Color Display, White, No Logo",0]
[null,"NSB8BHN240-0","Temp, 3%RH, Monochrome Display, White, Logo",0]
[null,"NSB8BHN242-0","Temp, 3%RH, Monochrome Display, Black, Logo",0]
[null,"NSB8BHN241-0","Temp, 3%RH, Monochrome Display, White, No Logo",0]
[null,"NSB8BHN340-0","Temp, 3%RH, Color Display, White Logo",0]
[null,"NSB8BHN341-0","Temp, 3%RH, Color Display, White No Logo",0]
[null,"NSB8BHC240-0","Temp, 3%RH, CO2, Monochrome Display, Setpoint, White, Logo",0]
[null,"NSB8BHC242-0","Temp, 3%RH, CO2, Monochrome Display, Setpoint, Black, Logo",0]
[null,"NSB8BHC241-0","Temp, 3%RH, CO2, Monochrome Display, Setpoint, Black, No Logo",0]
[null,"NSB8BHC340-0","Temp, 3%RH, CO2, Color Display, Setpoint, White, Logo",0]
[null,"NSB8BHC341-0","Temp, 3%RH, CO2, Color Display, Setpoint, White, No Logo",0]
[]
[null,"Comm Card (required for SSE to work with Verasys.  Order with unit or use part # below if it comes without a comm card)"]
[null,"JCI Part Numbers","Description","Qty"]
[null,"SE-COM1001-0","Smart Equipment BACnet Communications Card. Required!",0,null,null,null,null,null,null,null,null,null,null,null,null,null,null,null,null,null,null,null,null,null,null,null,null,null,null,null,0]

{"sheet":"SZ - 3rd Party Equipment","index":5,"n_rows":22,"n_cols":4,"rows_kept":22,"cut":false,"hidden":false,"merged":[[13,1,13,3],[4,1,4,3],[1,1,2,3]]}
[]
[null,"Single Zone Verasys \"3rd Party\" Standard Equipment"]
[]
[]
[null,"TEC3000 Thermostat Options"]
[null,"JCI Part Number","System Covered","Qty"]
[null,"TEC3630-13-000","RTU\\Heat Pump, Economizer, JCI Logo, Black",0]
[null,"TEC3630-15-000","RTU\\Heat Pump, Economizer, No Logo, Black",0]
[null,"TEC3630-14-000","RTU\\Heat Pump, Economizer, JCI Logo, White",0]
[null,"TEC3630-16-000","RTU\\Heat Pump, Economizer, No Logo, White",0]
[null,"TEC3631-13-000","RTU\\Heat Pump, Economizer, JCI Logo, Black, Occupancy",0]
[null,"TEC3631-14-000","RTU\\Heat Pump, Economizer, JCI Logo, White, Occupancy",0]
[]
[null,"TEC3000 Accessories"]
[null,"JCI Part Number","Description","Qty"]
[null,"TE-6311M-1","8\" Supply Air Duct Sensor, Metal Enclosure, Nickel (Optional for RTU, Furnace, Heat Pumps, Unit Heater)",0]
[null,"TE-6313P-1","Outside Air Sensor, Nickel (Optional for RTU, Furnace, Heat Pumps)(Required if you are economizing)",0]
[null,"SEN-600-1","Remote Indoor Wall Temperature Sensor, 1k ohm, Nickel (Optional, up to 3 for averaging)",0]
[null,"CSD-CF0A0-1","Fan Status current switch, Split Core, 0.15 A Fixed Switch Setpoint 0.15 to 200 A Range (Optional)",0]
[null,"M9208-GGA-3","Damper Actuator, 70in-lb spring return actuator proportional (Optional unless you are doing economization)",0]
[null,"M9208-250","Remote mounting kit with crankarm and damper linkage. (Used when actuator is not directly mounted on a shaft)",0]
[null,"TEC-WALLPLT","TEC3000 Wall Plate (Optional to cover larger openings)",0]

{"sheet":"MZ- Zone Coordinator","index":6,"n_rows":19,"n_cols":5,"rows_kept":19,"cut":false,"hidden":false,"merged":[[4,1,4,2],[1,1,2,3],[9,1,9,2],[16,1,16,2]]}
[]
[null,"Multi Zone Zone Coordinators"]
[]
[]
[null,"Zone Coordinators"]
[null,"JCI Part Number","Description","Qty"]
[null,"LC-VZC100-0","Verasys Zoning Coordinator for VAV and COBP applications (Loose Board Version)",0]
[null,"LC-VZCPNL-0","Verasys Zoning Coordinator for VAV and COBP applications (Panel Version)",0]
[]
[null,"Power for VZC, ZEC, & BYP"]
[null,"JCI Part Number","Description","Qty"]
[null,"Y65T42-0","120/208/240 to 24V XFR 40VA (Power for 2 Controllers)",0]
[null,"PSH100A","120V to 24V XFR, 100VA (Power for 6 Controllers)",0,"*Each Zone Coordinator can control up to 32 zone controllers.  One Coordinator is required per VAV or COBP RTU. "]
[null,"PSH300A","480/277/240/120V to 24V XFR, 3 Circuits 100VA each (Power for 18 Controllers)",0,"*Each Zone Coordinator needs to have atleast 1 VEC or SSE board to control the RTU."]
[null,"PSH500A","480/277/240/120V  to 24V XFR,5 Circuits 100VA each (Power for 30 Controllers)",0]
[]
[null,"Wire for ZEC & BYP"]
[null,"JCI Part Number","Description","Qty"]
[null,"CBL-18/2GRY-PLN-BOX","18awg stranded power wire for ZEC, BYP, & VZC",0]

{"sheet":"MZ- Smart Equipment","index":7,"n_rows":51,"n_cols":5,"rows_kept":51,"cut":false,"hidden":false,"merged":[[1,1,2,3],[4,1,4,2]]}
[]
[null,"Multi Zone Zone SMART Equipment"]
[]
[]
[null,"Order Comm Card with new RTU.  If SSE Board doesn't have one order the part below"]
[null,"JCI Part Numbers","Description","Qty"]
[null,"SE-COM1001-0","Smart Equipment BACnet Communications Card Required!",0]
[]
[]
[]
[]
[null,null,null,0]
[]
[]
[]
[]
[]
[]
[]
[]
[]
[]
[]
[]
[]
[]
[]
[]
[]
[]
[]
[]
[]
[]
[]
[]
[]
[]
[]
[]
[]
[]
[]
[]
[]
[]
[]
[]
[]
[]
[null,null,null,null,0]

{"sheet":"MZ- 3rd Party Units","index":8,"n_rows":20,"n_cols":12,"rows_kept":20,"cut":false,"hidden":false,"merged":[[4,1,4,3],[8,1,8,3],[1,1,2,3]]}
[]
[null,"Multi Zone Zone SMART Equipment"]
[]
[]
[null,"3rd Party RTU Controller"]
[null,"JCI Part Numbers","Description","Qty",null,null,"*The VEC is only used for 3rd Party zoning RTUs"]
[null,"LC-VEC100-0","Verasys Equipment Controller, 3rd Party RTU (VAV, COPB) (Not Needed on an RTU with an SSE Board)",0,null,null,"*The VEC connects to the Zone Coordinator it never connects directly to the SBH"]
[null,null,null,null,null,null,"*There are several apps made for the VEC depending on the type of application…details below"]
[null,"3rd Party RTU Controller Accessories "]
[null,"JCI Part Numbers","Description","Qty"]
[null,"TE-6311M-1"," For Supply Air Temperature (Mandatory), Return Air Temperature (Optional) ",0,null,"VEC Configuration Video"]
[null,"TE-6313P-1","Outside Air Sensor, Nickel (Manditory if you are doing economization)",0]
[null,"DP140005U11D","Duct Static Pressure-Low Differential Pressure Transducer (0-5 in WC, 0-5VDC)(Required for VAV)",0,null,"Modulated Heating & Staged Cooling Application Note",null,null,null,null,null,"Staged Heating & Modulated Cooling Application Note"]
[null,"FTG18A-600R","Duct Static Pressure Probe.  (Need one per DPT)",0]
[null,"P32AC-2C","Filter Status-Differential Pressure Switch, Single-Pole, Double-Throw (SPDT), 0.05 to 5 in. W.C.",0]
[null,"FTG18A-600R","Duct Static Pressure Probe Kit: 4 in. Flanged Sensing Tube",0,null,"Staged Heating & Staged Cooling Application Note",null,null,null,null,null,"Heat Pump Application Note"]
[null,"CSD-CF0A0-1","Fan Status-Current switch, Split Core, 0.15 A Fixed Switch Setpoint 0.15 to 200 A Range",0]
[null,"CD-P1000-00-00","Duct Mount CO2 Transmitter 0–10 VDC, 0–2,000 ppm CO2 (Optional unless you are doing Deman Ventilation Control)",0]
[null,"M9208-GGA-3","Damper Actuator 70in-lb spring return actuator proportional (Optional unless you are doing economization)",0,null,"Modulated Heat Modulated Cooling Application Note",null,null,null,null,null,"VEC Apps"]
[null,"M9208-250","Remote mounting kit with crankarm and damper linkage (Used when actuator is not directly mounted on a shaft)",0]

{"sheet":"MZ- VAV Zones","index":9,"n_rows":47,"n_cols":4,"rows_kept":47,"cut":false,"hidden":false,"merged":[[1,1,2,3],[4,1,4,2],[8,1,8,2],[35,1,35,2],[41,1,41,2]]}
[]
[null,"Multi Zone VAV Controller Selection Page"]
[]
[]
[null,"VAV Controllers"]
[null,"JCI Part Number","Description","Qty"]
[null,"LC-ZEC510-1","Configurable VAV Box Controller, All Fan Types, Staged/Incremental/SCR/Cooling-Only",0]
[]
[null,"NetStats for Zone Temperature"]
[null,"JCI Part Number","Description","Qty"]
[null,"NSB8BTN340-0","Temp, Color Display, Setpoint, White, Logo",0]
[null,"NSB8BTN341-0","Temp, Color Display, Setpoint, White, No Logo",0]
[null,"NSB8BTN240-0","Temp, Monochrome Display, Setpoint, White, Logo",0]
[null,"NSB8BTN242-0","Temp, Monochrome Display, Setpoint, Black, Logo",0]
[null,"NSB8BTN241-0","Temp, Monochrome Display, Setpoint, White, No Logo",0]
[null,"NSB8BTN040-0","Temp, No Display, White, Logo",0]
[null,"NSB8BTN041-0","Temp, No Display, White, No Logo",0]
[null,"NSB8BTN140-0","Temp, No Display\\Warmer\\Cooler, White, Logo",0]
[null,"NSB8BTN142-0","Temp, No Display\\Warmer\\Cooler, Black, Logo",0]
[null,"NSB8BTN141-0","Temp, No Display\\Warmer\\Cooler, White, No Logo",0]
[null,"NSB8BTC340-0","Temp, CO2, Color Display, White Logo",0]
[null,"NSB8BTC341-0","Temp, CO2, Color Display, White No Logo",0]
[null,"NSB8BHN340-0","Temp, 3%RH, Color Display, White, Logo",0]
[null,"NSB8BHN341-0","Temp, 3%RH, Color Display, White, No Logo",0]
[null,"NSB8BHN240-0","Temp, 3%RH, Monochrome Display, White, Logo",0]
[null,"NSB8BHN242-0","Temp, 3%RH, Monochrome Display, Black, Logo",0]
[null,"NSB8BHN241-0","Temp, 3%RH, Monochrome Display, White, No Logo",0]
[null,"NSB8BHN340-0","Temp, 3%RH, Color Display, White Logo",0]
[null,"NSB8BHN341-0","Temp, 3%RH, Color Display, White No Logo",0]
[null,"NSB8BHC240-0","Temp, 3%RH, CO2, Monochrome Display, Setpoint, White, Logo",0]
[null,"NSB8BHC242-0","Temp, 3%RH, CO2, Monochrome Display, Setpoint, Black, Logo",0]
[null,"NSB8BHC241-0","Temp, 3%RH, CO2, Monochrome Display, Setpoint, Black, No Logo",0]
[null,"NSB8BHC340-0","Temp, 3%RH, CO2, Color Display, Setpoint, White, Logo",0]
[null,"NSB8BHC341-0","Temp, 3%RH, CO2, Color Display, Setpoint, White, No Logo",0]
[]
[null,"VAV Accessories"]
[null,"JCI Part Number","Description","Qty"]
[null,"TE-631GV-2","4\" Duct Sensor for VAV Flange Mount, Nickel, 10ft plenum Cable (required for standlone ZEC510)",0]
[null,"NS-ATV7003-0","VAV Box Balancing Thermostat (Optional for contractor to balance VAV box)",0]
[null,"TL-CWCVT-0","Commissioning Tool (Optional.  MAP replacement.  Used to commssion standalone ZEC510s)",0]
[]
[null,"Power for ZEC Controllers"]
[null,"JCI Part Number","Description","Qty"]
[null,"Y65T42-0","120/208/240 to 24V XFR 40VA (Power for 2 Controllers)",0]
[null,"PSH100A","120V to 24V XFR, 100VA (Power for 6 Controllers)",0]
[null,"PSH300A","480/277/240/120V to 24V XFR, 3 Circuits 100VA each (Power for 18 Controllers)",0]
[null,"PSH500A","480/277/240/120V to 24V XFR, 5 Circuits 100VA each (Power for 30 Controllers)",0]

{"sheet":"MZ - COBP Zones","index":10,"n_rows":78,"n_cols":5,"rows_kept":78,"cut":false,"hidden":false,"merged":[[72,1,72,2],[1,1,2,3],[68,1,68,2],[36,1,36,2],[8,4,20,4],[21,4,33,4],[4,1,4,2],[63,1,63,2]]}
[]
[null,"Multi Zone COBP (VVT)  Selection Page"]
[]
[]
[null,"COBP Zone Dampers/Controllers"]
[null,"JCI Part Number","Description","Qty"]
[null,"LC-ZEC310-0","Field Installed, Zone Damper Controller No Damper",0]
[null,"RCG04B","4\" Round Zone/Bypass Damper No Controller ",0]
[null,"RCG06B","6\" Round Zone/Bypass Damper No Controller ",0,"5 Day Lead-time"]
[null,"RCG07B","7\" Round Zone/Bypass Damper No Controller ",0]
[null,"RCG08B","8\" Round Zone/Bypass Damper No Controller ",0]
[null,"RCG09B","9\" Round Zone/Bypass Damper No Controller ",0]
[null,"RCG10B","10\" Round Zone/Bypass Damper No Controller ",0]
[null,"RCG11B","11\" Round Zone/Bypass Damper No Controller ",0]
[null,"RCG12B","12\" Round Zone/Bypass Damper No Controller ",0]
[null,"RCG13B","13\" Round Zone/Bypass Damper No Controller ",0]
[null,"RCG14B","14\" Round Zone/Bypass Damper No Controller ",0]
[null,"RCG15B","15\" Round Zone/Bypass Damper No Controller ",0]
[null,"RCG16B","16\" Round Zone/Bypass Damper No Controller ",0]
[null,"RCG17B","17\" Round Zone/Bypass Damper No Controller ",0]
[null,"RCG18B","18\" Round Zone/Bypass Damper No Controller ",0]
[null,"RZV06Z","6\" Round Zone Damper LC-ZEC310-0 Controller ",0,"15 Day Lead-time"]
[null,"RZV07Z","7\" Round Zone Damper LC-ZEC310-0 Controller ",0]
[null,"RZV08Z","8\" Round Zone Damper LC-ZEC310-0 Controller ",0]
[null,"RZV09Z","9\" Round Zone Damper LC-ZEC310-0 Controller ",0]
[null,"RZV10Z","10\" Round Zone Damper LC-ZEC310-0 Controller ",0]
[null,"RZV11Z","11\" Round Zone Damper LC-ZEC310-0 Controller ",0]
[null,"RZV12Z","12\" Round Zone Damper LC-ZEC310-0 Controller ",0]
[null,"RZV13Z","13\" Round Zone Damper LC-ZEC310-0 Controller ",0]
[null,"RZV14Z","14\" Round Zone Damper LC-ZEC310-0 Controller ",0]
[null,"RZV15Z","15\" Round Zone Damper LC-ZEC310-0 Controller ",0]
[null,"RZV16Z","16\" Round Zone Damper LC-ZEC310-0 Controller ",0]
[null,"RZV17Z","17\" Round Zone Damper LC-ZEC310-0 Controller ",0]
[null,"RZV18Z","18\" Round Zone Damper LC-ZEC310-0 Controller ",0]
[null,null,"Rectangular dampers are supported up to 30\"x30\".  Order dampers separately and connect LC-ZEC310-0 "]
[]
[null,"Zone Temperature Sensors Option 1 (NetStats - Recommended) "]
[null,"JCI Part Number","Description","Qty"]
[null,"NSB8BTN340-0","Temp, Color Display, Setpoint, White, Logo",0]
[null,"NSB8BTN341-0","Temp, Color Display, Setpoint, White, No Logo",0]
[null,"NSB8BTN240-0","Temp, Monochrome Display, Setpoint, White, Logo",0]
[null,"NSB8BTN242-0","Temp, Monochrome Display, Setpoint, Black, Logo",0]
[null,"NSB8BTN241-0","Temp, Monochrome Display, Setpoint, White, No Logo",0]
[null,"NSB8BTN040-0","Temp, No Display, White, Logo",0]
[null,"NSB8BTN041-0","Temp, No Display, White, No Logo",0]
[null,"NSB8BTN140-0","Temp, No Display\\Warmer\\Cooler, White, Logo",0]
[null,"NSB8BTN142-0","Temp, No Display\\Warmer\\Cooler, Black, Logo",0]
[null,"NSB8BTN141-0","Temp, No Display\\Warmer\\Cooler, White, No Logo",0]
[null,"NSB8BTC340-0","Temp, CO2, Color Display, White Logo",0]
[null,"NSB8BTC341-0","Temp, CO2, Color Display, White No Logo",0]
[null,"NSB8BHN340-0","Temp, 3%RH, Color Display, White, Logo",0]
[null,"NSB8BHN341-0","Temp, 3%RH, Color Display, White, No Logo",0]
[null,"NSB8BHN240-0","Temp, 3%RH, Monochrome Display, White, Logo",0]
[null,"NSB8BHN242-0","Temp, 3%RH, Monochrome Display, Black, Logo",0]
[null,"NSB8BHN241-0","Temp, 3%RH, Monochrome Display, White, No Logo",0]
[null,"NSB8BHN340-0","Temp, 3%RH, Color Display, White Logo",0]
[null,"NSB8BHN341-0","Temp, 3%RH, Color Display, White No Logo",0]
[null,"NSB8BHC240-0","Temp, 3%RH, CO2, Monochrome Display, Setpoint, White, Logo",0]
[null,"NSB8BHC242-0","Temp, 3%RH, CO2, Monochrome Display, Setpoint, Black, Logo",0]
[null,"NSB8BHC241-0","Temp, 3%RH, CO2, Monochrome Display, Setpoint, Black, No Logo",0]
[null,"NSB8BHC340-0","Temp, 3%RH, CO2, Color Display, Setpoint, White, Logo",0]
[null,"NSB8BHC341-0","Temp, 3%RH, CO2, Color Display, Setpoint, White, No Logo",0]
[]
[null,"Zone Temperature Sensors Option 2 (Hardwired)"]
[null,"JCI Part Number","Description","Qty"]
[null,"TE-68NT-0N00S","Wall temperature sensor, 1k ohm, nickel with temperature occupancy button.",0]
[null,"TE-68NT-1N00S","Wall temperature sensor, 1k ohm,nickel with warmer/cooler (W/C) adjustment and temperature occupancy pushbutton.",0]
[]
[null,"2nd Zone Damper Actuator Option (You will need to mount this actuator on a damper without a ZEC310)"]
[null,"JCI Part Number","Description","Qty"]
[null,"M9310-HGA-2","10NM Torque Non-Spring Return Damper Actuator",0]
[]
[null,"Power for BYP & ZEC Controllers"]
[null,"JCI Part Number","Description","Qty"]
[null,"Y65T42-0","120/208/240 to 24V XFR 40VA (Power for 2 Controllers)",0]
[null,"PSH100A","120V to 24V XFR, 100VA (Power for 6 Controllers)",0]
[null,"PSH300A","480/277/240/120V to 24V XFR, 3 Circuits 100VA each (Power for 18 Controllers)",0]
[null,"PSH500A","480/277/240/120V  to 24V XFR,5 Circuits 100VA each (Power for 30 Controllers)",0]

{"sheet":"MZ- Bypass Damper","index":11,"n_rows":44,"n_cols":5,"rows_kept":44,"cut":false,"hidden":false,"merged":[[1,1,2,3],[7,4,19,4],[20,4,32,4],[4,1,4,2],[41,1,41,2],[36,1,36,2]]}
[]
[null,"Multi Zone COBP Bypass Controller Selection Page"]
[]
[]
[null,"Bypass Control"]
[null,"JCI Part Number","Description","Qty"]
[null,"LC-BYP200-0","Field Installed, Bypass Damper Controller - No Damper",0]
[null,"RCG06B","6\" Round Zone/Bypass Damper No Controller ",0,"5 Day Lead-time"]
[null,"RCG07B","7\" Round Zone/Bypass Damper No Controller ",0]
[null,"RCG08B","8\" Round Zone/Bypass Damper No Controller ",0]
[null,"RCG09B","9\" Round Zone/Bypass Damper No Controller ",0]
[null,"RCG10B","10\" Round Zone/Bypass Damper No Controller ",0]
[null,"RCG11B","11\" Round Zone/Bypass Damper No Controller ",0]
[null,"RCG12B","12\" Round Zone/Bypass Damper No Controller ",0]
[null,"RCG13B","13\" Round Zone/Bypass Damper No Controller ",0]
[null,"RCG14B","14\" Round Zone/Bypass Damper No Controller ",0]
[null,"RCG15B","15\" Round Zone/Bypass Damper No Controller ",0]
[null,"RCG16B","16\" Round Zone/Bypass Damper No Controller ",0]
[null,"RCG17B","17\" Round Zone/Bypass Damper No Controller ",0]
[null,"RCG18B","18\" Round Zone/Bypass Damper No Controller ",0]
[null,"RZV06Y","6\" Round Bypass Damper LC-BYP200-0 Controller *",0,"15 Day Lead-time"]
[null,"RZV07Y","7\" Round Bypass Damper LC-BYP200-0 Controller *",0]
[null,"RZV08Y","8\" Round Bypass Damper LC-BYP200-0 Controller *",0]
[null,"RZV09Y","9\" Round Bypass Damper LC-BYP200-0 Controller *",0]
[null,"RZV10Y","10\" Round Bypass Damper LC-BYP200-0 Controller *",0]
[null,"RZV11Y","11\" Round Bypass Damper LC-BYP200-0 Controller *",0]
[null,"RZV12Y","12\" Round Bypass Damper LC-BYP200-0 Controller *",0]
[null,"RZV13Y","13\" Round Bypass Damper LC-BYP200-0 Controller *",0]
[null,"RZV14Y","14\" Round Bypass Damper LC-BYP200-0 Controller *",0]
[null,"RZV15Y","15\" Round Bypass Damper LC-BYP200-0 Controller *",0]
[null,"RZV16Y","16\" Round Bypass Damper LC-BYP200-0 Controller *",0]
[null,"RZV17Y","17\" Round Bypass Damper LC-BYP200-0 Controller *",0]
[null,"RZV18Y","18\" Round Bypass Damper LC-BYP200-0 Controller *",0]
[null,null,"Rectangular dampers are supported up to 30\"x30\".  Order dampers separately and connect LC-ZEC310-0 or LC-BYP200-0"]
[null,null,"* Bypass Dampers come with Controller but without Differential Pressure Sensors"]
[]
[null,"Differential Pressure Sensor \n(Required)"]
[null,"JCI Part Number","Description","Qty"]
[null,"DP140005U11D","Low Differential Pressure Transducer 0-5 in WC, 0-5VDC (Required for each BYP200)",0]
[null,"FTG18A-600R","Duct Static Pressure Probe.  Need one per DPT",0]
[]
[null,"2nd Zone Damper Actuator Option (You will need to mount this actuator on a damper without a BYP200)"]
[null,"JCI Part Number","Description","Qty"]
[null,"M9310-HGA-2","10NM Torque Non-Spring Return Damper Actuator",0]

{"sheet":"Adv. Application Controller","index":12,"n_rows":52,"n_cols":6,"rows_kept":52,"cut":false,"hidden":false,"merged":[[26,1,26,2],[1,1,2,3],[4,1,4,2],[10,1,10,2]]}
[]
[null,"3rd Party Application Controller"]
[]
[]
[null,"Advanced Application Controller"]
[null,"JCI Part Number","Description","Qty"]
[null,"LC-VAC1000-0","18 Point 24v, Application Controller with no application loaded",0]
[null,"LC-VAC3000-0","32 Point 24v, Application Controller with no application loaded",0]
[null,"LC-IOM3711-0","12 Point 24v, Expansion Controller for the VAC",0]
[]
[null,"Accessories"]
[null,"JCI Part Number","Description","Qty"]
[null,"TE-6311M-1","8\" Duct Sensor Metal Enclosure, Nickel (Supply Air Required, Mixed Air optional)",0]
[null,"TE-6315M-1","Mixed Air Sensor, Nickel (Optional unless you have proportional heating & cooling & enconomization)",0]
[null,"TE-6313P-1","Outside Air Sensor, Nickel (Required for economiztion control)",0]
[null,"CSDECM-C35200L0","Fan Status-Current switch, Split Core, (0.15 A Fixed Switch Setpoint 0.15 to 200 A Range)(Optional)",0]
[null,"A70HA-1C","Low Temperature Alarm (Optional) (when you have water coils and economizer Required) ",0]
[null,"TE-6001-8","Required when installing a A70HA-1C (one per A70HA-1C)",0]
[null,"M9208-GGA-3","OA or MA damper actuator 70in-lb spring return actuator proportional (Optional unless you are doing economization)",0]
[null,"M9208-250","Remote mounting kit with crankarm and damper linkage (Used when actuator is not directly mounted on a shaft)",0]
[null,"HE-69130NP-0","ZN-H, Zone Humidity Duct Humidity Sensor w Temp Sensor (3%) (Can be used in place of an NS Sensor)",0]
[null,"CD-P1000-00-00U","RA-Q, Return Air Quality Duct CO2 Sensor, 0-2000 PPM, 0 - 10 VDC (For DCV if you don't have CO2 on the NS Sensor)",0]
[null,"P32AC-2C","Fan Status-Differential Pressure Switch, Single-Pole, Double-Throw (SPDT), 0.05 to 5 in. W.C.",0]
[null,"FTG18A-600R","Duct Static Pressure Probe Kit: 4 in. Flanged Sensing Tube (required when installing a P32AC-2C)",0]
[null,"HL-69158NP-0 ","Multi-function High limit or proportional override humidity controller (required when you have a humidifier)",0,null,"VAC Application Note"]
[]
[null,"Hardwired Zone Sensors"]
[null,"JCI Part Number","Description","Qty",null,"Apps for the VAC"]
[null,"NSB8BTN340-0","Temp, Color Display, Setpoint, White, Logo",0]
[null,"NSB8BTN341-0","Temp, Color Display, Setpoint, White, No Logo",0]
[null,"NSB8BTN240-0","Temp, Monochrome Display, Setpoint, White, Logo",0]
[null,"NSB8BTN242-0","Temp, Monochrome Display, Setpoint, Black, Logo",0]
[null,"NSB8BTN241-0","Temp, Monochrome Display, Setpoint, White, No Logo",0]
[null,"NSB8BTN040-0","Temp, No Display, White, Logo",0]
[null,"NSB8BTN041-0","Temp, No Display, White, No Logo",0]
[null,"NSB8BTN140-0","Temp, No Display\\Warmer\\Cooler, White, Logo",0]
[null,"NSB8BTN142-0","Temp, No Display\\Warmer\\Cooler, Black, Logo",0]
[null,"NSB8BTN141-0","Temp, No Display\\Warmer\\Cooler, White, No Logo",0]
[null,"NSB8BTC340-0","Temp, CO2, Color Display, White Logo",0]
[null,"NSB8BTC341-0","Temp, CO2, Color Display, White No Logo",0]
[null,"NSB8BHN340-0","Temp, 3%RH, Color Display, White, Logo",0]
[null,"NSB8BHN341-0","Temp, 3%RH, Color Display, White, No Logo",0]
[null,"NSB8BHN240-0","Temp, 3%RH, Monochrome Display, White, Logo",0]
[null,"NSB8BHN242-0","Temp, 3%RH, Monochrome Display, Black, Logo",0]
[null,"NSB8BHN241-0","Temp, 3%RH, Monochrome Display, White, No Logo",0]
[null,"NSB8BHN340-0","Temp, 3%RH, Color Display, White Logo",0]
[null,"NSB8BHN341-0","Temp, 3%RH, Color Display, White No Logo",0]
[null,"NSB8BHC240-0","Temp, 3%RH, CO2, Monochrome Display, Setpoint, White, Logo",0]
[null,"NSB8BHC242-0","Temp, 3%RH, CO2, Monochrome Display, Setpoint, Black, Logo",0]
[null,"NSB8BHC241-0","Temp, 3%RH, CO2, Monochrome Display, Setpoint, Black, No Logo",0]
[null,"NSB8BHC340-0","Temp, 3%RH, CO2, Color Display, Setpoint, White, Logo",0]
[null,"NSB8BHC341-0","Temp, 3%RH, CO2, Color Display, Setpoint, White, No Logo",0]

{"sheet":"Fan Coil Units","index":13,"n_rows":22,"n_cols":4,"rows_kept":22,"cut":false,"hidden":false,"merged":[[4,1,4,3],[1,1,2,3],[16,1,16,3]]}
[]
[null,"Fan Coil Unit Selection Page"]
[]
[]
[null,"Wired TEC300 Thermostats | Verasys Smart FanCoil Thermostats"]
[null,"JCI Part Number","Description","Qty"]
[null,"TEC3612-14-000","Fan Coil On/Off or Floating Outputs, JCI Logo, White, Humidity",0]
[null,"TEC3613-14-000","Fan Coil On/Off or Floating Outputs, JCI Logo, White, Humidity, Occupancy",0]
[null,"TEC3612-13-000","Fan Coil On/Off or Floating Outputs, JCI Logo, Black, Humidity",0]
[null,"TEC3613-14-000","Fan Coil On/Off or Floating Outputs, JCI Logo, Black, Humidity, Occupancy",0]
[null,"TEC3612-16-000","Fan Coil On/Off or Floating Outputs, No Logo, White, Humidity",0]
[null,"TEC3622-14-000","Fan Coil Proportional Outputs, 0-10VDC, JCI Logo, White, Humidity",0]
[null,"TEC3623-14-000","Fan Coil Proportional Outputs, 0-10VDC, JCI Logo, White, Humidity, Occupancy",0]
[null,"TEC3622-13-000","Fan Coil Proportional Outputs, 0-10VDC, JCI Logo, Black, Humidity",0]
[null,"TEC3622-16-000","Fan Coil Proportional Outputs, 0-10VDC, No Logo, White, Humidity",0]
[]
[null,"TEC3000 Accessories"]
[null,"JCI Part Number","Description","Qty"]
[null,"TE-6311M-1","8\" Supply Air Duct Sensor, Metal Enclosure, Nickel (Optional for RTU, Furnace, Heat Pumps)",0]
[null,"TE-68NT-0N00S","Remote Indoor Wall Temperature Sensor, 1k ohm, Nickel (Optional, up to 3 for averaging)",0]
[null,"CSD-CF0A0-1","Fan Status current switch, Split Core, 0.15 A Fixed Switch Setpoint 0.15 to 200 A Range (Optional)",0]
[null,"TEC-WALLPLT","TEC3000 Wall Plate (Optional to cover larger openings)",0]

{"sheet":"Lighting","index":14,"n_rows":19,"n_cols":4,"rows_kept":19,"cut":false,"hidden":false,"merged":[[1,1,2,3],[31,1,31,3],[42,1,42,3],[49,1,49,3],[62,2,62,3],[53,1,53,3],[57,1,57,3],[58,2,58,3],[4,1,4,3],[8,1,8,3],[14,1,14,3]]}
[]
[null,"Verasys Lighting Controller Selection Page"]
[]
[]
[null,"Lighting Controller"]
[null,"JCI Part Number","Description","Qty"]
[null,"LC-VAC1001-0","18 Point 24v, Application Controller with Lighting Application",0]
[]
[null,"Lighting Accessories"]
[null,"JCI Part Number","Description","Qty"]
[null,"Light Sensors"]
[null,"MK7-B-CR-0/10","Outdoor Light Level Sensor, 0-250 Ft Candles",0]
[null,"MK7-B-CCF-0/10","Indoor Light Level Sensor, 0-100 Ft Candles",0]
[]
[null,"Lighting Panels"]
[null,"JCI Part Number","Description","Qty"]
[null,"LC-VLP100-0","Verasys Lighting Panel with Lighting Controller, no relays, no contactors, 16in W x 20in H x 6-5/8 D",0]
[null,"LC-VLP110-0","Verasys Lighting Panel with Lighting Controller, with nine 15A SPST relays, no contactors,\n24in W x 24in H x 6-5/8 D",0]
[null,"LC-VLP120-0","Verasys Lighting Panel with Lighting Controller, with nine 15A SPST relays, \nwith nine contactors (600 V max), 24in W x 36in H x 6-5/8 D",0]

{"sheet":"BOM","index":15,"n_rows":327,"n_cols":6,"rows_kept":327,"cut":false,"hidden":false,"merged":[[4,1,4,5],[1,3,1,5]]}
[]
[]
[]
[]
[null,"Verasys Bill of Materials"]
[null,"System","Function","JCI Part No","Description","Qty"]
[null,"Network","Smart Building Hub",{"$f":"Network!B6","v":"LC-SBH300-0"},{"$f":"Network!C6","v":"Verasys Smart Building Hub (with power supply & Wi-Fi adapter)"},{"$f":"Network!D6","v":0}]
[null,"Network","Smart Building Hub",{"$f":"Network!B7","v":"LC-SBH300-0C"},{"$f":"Network!C7","v":"Verasys Smart Building Hub with IGC-150 Cell Modem (with power supply & Wi-Fi adapter)"},{"$f":"Network!D7","v":0}]
[null,"Network","Smart Building Hub",{"$f":"Network!B8","v":"LC-SBH300-0LA"},{"$f":"Network!C8","v":"Verasys Smart Building Hub (Latin America)"},{"$f":"Network!D8","v":0}]
[null,"Network","Smart Building Hub",{"$f":"Network!B9","v":"LC-SBHPNL-01"},{"$f":"Network!C9","v":"Verasys Smart Building Hub within NEMA 1 Enclosure"},{"$f":"Network!D9","v":0}]
[null,"Network","Smart Building Hub",{"$f":"Network!B10","v":"LC-SBHPNL-01C"},{"$f":"Network!C10","v":"Verasys Smart Building Hub within NEMA 1 Enclosure with IGC-1500 Cell Modem"},{"$f":"Network!D10","v":0}]
[null,"Network","Verasys Enterprise",{"$f":"Network!B11","v":"LC-ENT100-01"},{"$f":"Network!C11","v":"1 Year License Renewal for Verasys Enterprise"},{"$f":"Network!D11","v":0}]
[null,"Network","Smart Building Hub Power",{"$f":"Network!B15","v":"ACC-PWRKIT-1A24"},{"$f":"Network!C15","v":"Verasys LC-SBH200-0 Power Supply (Comes with SBH)"},{"$f":"Network!D15","v":0}]
[null,"Network","Smart Building Hub WiFi",{"$f":"Network!B16","v":"ACC-WIFIKIT-0DU"},{"$f":"Network!C16","v":"Verasys LC-SBH200-0 USB Wi-Fi Stick (Comes with SBH)"},{"$f":"Network!D16","v":0}]
[null,"Network","BACnet MSTP Repeater",{"$f":"Network!B20","v":"4683-TTM-3F"},{"$f":"Network!C20","v":"RS-485 Repeater (Needed if you have more than 50 devices or exceed 4,000ft-Max 2 repeaters)"},{"$f":"Network!D20","v":0}]
[null,"Network","BACnet MSTP EOL",{"$f":"Network!B21","v":"MS-BACEOL-0"},{"$f":"Network!C21","v":"End of line Terminator (Used on a 3rd party device)"},{"$f":"Network!D21","v":0}]
[null,"Network","Communication Wire",{"$f":"Network!B22","v":"CBL-22/3-FC-PLN"},{"$f":"Network!C22","v":"System/Zone Bus Cable 22-3C Shielded Plenum Wire"},{"$f":"Network!D22","v":0}]
[null,"Network","Communication Wire",{"$f":"Network!B23","v":"CBL-22/3-FC-PVC "},{"$f":"Network!C23","v":"System/Zone Bus Cable 22-3C Shielded NonPlenum Wire"},{"$f":"Network!D23","v":0}]
[null,"Network","Communication Wire",{"$f":"Network!B24","v":"CBL-22/2P-SAPLN"},{"$f":"Network!C24","v":"Sensor Bus Cable 22-2P Shielded Plenum Wire "},{"$f":"Network!D24","v":0}]
[null,"Network","Communication Wire",{"$f":"Network!B25","v":"CBL-22/2P-SAPVC"},{"$f":"Network!C25","v":"Sensor Bus Cable 22-2P Shielded NonPlenum Wire"},{"$f":"Network!D25","v":0}]
[null,"Network","Battery Backup",{"$f":"Network!B26","v":"UPSPNL550-0"},{"$f":"Network!C26","v":"550 VA/330W Power System Battery Backup and Surge Protection"},{"$f":"Network!D26","v":0}]
[null,"Network","Wireless",{"$f":"Network!B30","v":"LC-TMR100-0 "},{"$f":"Network!C30","v":"TMR (Transparent MS/TP Router-Max 35 devices connected to one Coordinator)"},{"$f":"Network!D30","v":0}]
[null,"Network","Wireless",{"$f":"Network!B31","v":"LC-TMRKIT-0"},{"$f":"Network!C31","v":"TMR Weatherproof Enclosure"},{"$f":"Network!D31","v":0}]
[null,"Network","Wireless",{"$f":"Network!B32","v":"ZFR-SSTBAT-0"},{"$f":"Network!C32","v":"TMR Battery Pack (For a test kit order 2) LC-TMR100-0 & 2) of these battery packs)"},{"$f":"Network!D32","v":0}]
[null,"Network","Wireless",{"$f":"Network!B33","v":"ZFR-CBLEXT-1"},{"$f":"Network!C33","v":"10 foot RJ-12 cable (Connects the TMR to a controller or SBH)"},{"$f":"Network!D33","v":0}]
[null,"I/O Module","IOM Device",{"$f":"'IOM Device'!B6","v":"LC-VAC1002-0"},{"$f":"'IOM Device'!C6","v":"Verasys Input Output Configurable Controller (4 Binary Inputs, 5 Analog Inputs, 9 Binary Outputs per IOM)"},{"$f":"'IOM Device'!D6","v":0}]
[null,"I/O Module","IOM Panel",{"$f":"'IOM Device'!B7","v":"LC-IOP200-0"},{"$f":"'IOM Device'!C7","v":"Verasys Panel Enclosure with Input Output Configurable Controller and Power, 16 in W x 20 in H x 6-5/8 in D"},{"$f":"'IOM Device'!D7","v":0}]
[null,"I/O Module","IOM Transformer",{"$f":"'IOM Device'!B11","v":"Y65T42-0"},{"$f":"'IOM Device'!C11","v":"Transformer 120/208/240 to 24V XFR 40VA"},{"$f":"'IOM Device'!D11","v":0}]
[null,"I/O Module","Temp Sensor",{"$f":"'IOM Device'!B12","v":"TE-68NT-0N00S"},{"$f":"'IOM Device'!C12","v":"Wall temperature sensor, 1k ohm, nickel with temperature occupancy button (32F to 131F)"},{"$f":"'IOM Device'!D12","v":0}]
[null,"I/O Module","Wall Kit",{"$f":"'IOM Device'!B13","v":"NS-WALLPLATE-0"},{"$f":"'IOM Device'!C13","v":"Adapts a TE-6800 Sensor (TE-68NT-0N00S) to a standard 80 x 120 mm wallbox"},{"$f":"'IOM Device'!D13","v":0}]
[null,"I/O Module","Temp Sensor",{"$f":"'IOM Device'!B14","v":"TE-6314P-1"},{"$f":"'IOM Device'!C14","v":"1K ohm Wall Temp Sensor (-50F to 122F)"},{"$f":"'IOM Device'!D14","v":0}]
[null,"I/O Module","Wall Kit",{"$f":"'IOM Device'!B15","v":"TE-1800-9600"},{"$f":"'IOM Device'!C15","v":"Wall Mounting Kit for TE-6300 (TE-6314P-1) stainless steel finish"},{"$f":"'IOM Device'!D15","v":0}]
[null,"I/O Module","SA, RA, MA Sensor",{"$f":"'IOM Device'!B16","v":"TE-6311M-1"},{"$f":"'IOM Device'!C16","v":"8\" Duct Sensor Metal Enclosure, Nickel"},{"$f":"'IOM Device'!D16","v":0}]
[null,"I/O Module","OA Sensor",{"$f":"'IOM Device'!B17","v":"TE-6313P-1"},{"$f":"'IOM Device'!C17","v":"Outside Air Sensor, Nickel"},{"$f":"'IOM Device'!D17","v":0}]
[null,"I/O Module","Humidity Sensor",{"$f":"'IOM Device'!B18","v":"HE-68N3-0N00WS"},{"$f":"'IOM Device'!C18","v":"Wall Mount Humidity Transmitter w Temp Sensor (3%)"},{"$f":"'IOM Device'!D18","v":0}]
[null,"I/O Module","Humidity Sensor",{"$f":"'IOM Device'!B19","v":"HE-68P3-0N000"},{"$f":"'IOM Device'!C19","v":"Outdoor Humidity Sensor (3%)"},{"$f":"'IOM Device'!D19","v":0}]
[null,"I/O Module","I/O",{"$f":"'IOM Device'!B20","v":"HE-69130NP-0"},{"$f":"'IOM Device'!C20","v":"Duct Humidity Sensor w Temp Sensor (3%)"},{"$f":"'IOM Device'!D20","v":0}]
[null,"I/O Module","CO2 Sensor",{"$f":"'IOM Device'!B21","v":"CD-W00-00-2U"},{"$f":"'IOM Device'!C21","v":"CO2 sensor 0-2000ppm"},{"$f":"'IOM Device'!D21","v":0}]
[null,"I/O Module","Light Sensor",{"$f":"'IOM Device'!B22","v":"MK7-B-CR-VTI"},{"$f":"'IOM Device'!C22","v":"Outdoor Light Level Sensor, 0-250 Ft Candles"},{"$f":"'IOM Device'!D22","v":0}]
[null,"I/O Module","Pressure Sensor",{"$f":"'IOM Device'!B23","v":"DPT2090-25G"},{"$f":"'IOM Device'!C23","v":"Pressure Sensor, Gage, 25 PSI, 0-5VDC, 0.25%"},{"$f":"'IOM Device'!D23","v":0}]
[null,"I/O Module","Steam Trap",{"$f":"'IOM Device'!B24","v":"TBG16A-600R"},{"$f":"'IOM Device'!C24","v":"Steam Trap Assembly (Pig Tail)"},{"$f":"'IOM Device'!D24","v":0}]
[null,"I/O Module","Differential Pressure",{"$f":"'IOM Device'!B25","v":"DP1400X1B11D"},{"$f":"'IOM Device'!C25","v":"Differential Pressure Sensor -1 to 1 in WC, 0-5VDC (Used for Building Pressure)"},{"$f":"'IOM Device'!D25","v":0}]
[null,"I/O Module","Differential Pressure",{"$f":"'IOM Device'!B26","v":"DP140X25U11D"},{"$f":"'IOM Device'!C26","v":"Differential Pressure Sensor -.25 to .25 in WC, 0-5VDC (Used for Building Pressure)"},{"$f":"'IOM Device'!D26","v":0}]
[null,"I/O Module","Leak Detector",{"$f":"'IOM Device'!B27","v":"RLD-134A"},{"$f":"'IOM Device'!C27","v":"Refrigerant Leak Detector for R-134A refrigerant. 0-5V, 0-1000PPM"},{"$f":"'IOM Device'!D27","v":0}]
[null,"I/O Module","Current Switch",{"$f":"'IOM Device'!B28","v":"CSDSC-C50100L0"},{"$f":"'IOM Device'!C28","v":"Current Switch Device Self Calibrating, 100A Max, No Relay"},{"$f":"'IOM Device'!D28","v":0}]
[null,"I/O Module","Current Switch",{"$f":"'IOM Device'!B29","v":"CSDSC-C50100L1"},{"$f":"'IOM Device'!C29","v":"Current Switch Device, Self Calibrating, 100A Max with 24v Relay (10A)"},{"$f":"'IOM Device'!D29","v":0}]
[null,"I/O Module","Current Switch",{"$f":"'IOM Device'!B30","v":"CSDECM-C35200L0"},{"$f":"'IOM Device'!C30","v":"Current Switch Device, Manual Calibrating, 200A Max, No Relay"},{"$f":"'IOM Device'!D30","v":0}]
[null,"I/O Module","Current Switch",{"$f":"'IOM Device'!B31","v":"CSDECM-C35200L1"},{"$f":"'IOM Device'!C31","v":"Current Switch Device, Manual Calibrating, 200A Max with24v Relay (10A)"},{"$f":"'IOM Device'!D31","v":0}]
[null,"I/O Module","Power Supply",{"$f":"'IOM Device'!B32","v":"RR10NN"},{"$f":"'IOM Device'!C32","v":"SPDT 10-30VDC/24VAC, 120VAC 10A"},{"$f":"'IOM Device'!D32","v":0}]
[null,"I/O Module","Power Supply",{"$f":"'IOM Device'!B33","v":"RR10YN"},{"$f":"'IOM Device'!C33","v":"SPDT 10-30VDC/24VAC, 120VAC 10A N.O. 1A @ 30VAC/DC, 0.3A TRIP"},{"$f":"'IOM Device'!D33","v":0}]
[null,"I/O Module","Power Supply",{"$f":"'IOM Device'!B34","v":"RR10NY"},{"$f":"'IOM Device'!C34","v":"SPST N.O. 10-30VDC/24VAC, 120VAC 10A  HOA"},{"$f":"'IOM Device'!D34","v":0}]
[null,"I/O Module","Power Supply",{"$f":"'IOM Device'!B35","v":"RR10YY"},{"$f":"'IOM Device'!C35","v":"SPST N.O. 10-30VDC/24VAC, 120VAC 10A = N.O. 1A @ 30VAC/DC, 0.3A TRIP HOA"},{"$f":"'IOM Device'!D35","v":0}]
[null,"I/O Module","NS Sensor",{"$f":"'IOM Device'!B39","v":"NSB8BTN340-0"},{"$f":"'IOM Device'!C39","v":"Temp, Color Display, Setpoint, White, Logo"},{"$f":"'IOM Device'!D39","v":0}]
[null,"I/O Module","NS Sensor",{"$f":"'IOM Device'!B40","v":"NSB8BTN341-0"},{"$f":"'IOM Device'!C40","v":"Temp, Color Display, Setpoint, White, No Logo"},{"$f":"'IOM Device'!D40","v":0}]
[null,"I/O Module","NS Sensor",{"$f":"'IOM Device'!B41","v":"NSB8BTN240-0"},{"$f":"'IOM Device'!C41","v":"Temp, Monochrome Display, Setpoint, White, Logo"},{"$f":"'IOM Device'!D41","v":0}]
[null,"I/O Module","NS Sensor",{"$f":"'IOM Device'!B42","v":"NSB8BTN242-0"},{"$f":"'IOM Device'!C42","v":"Temp, Monochrome Display, Setpoint, Black, Logo"},{"$f":"'IOM Device'!D42","v":0}]
[null,"I/O Module","NS Sensor",{"$f":"'IOM Device'!B43","v":"NSB8BTN241-0"},{"$f":"'IOM Device'!C43","v":"Temp, Monochrome Display, Setpoint, White, No Logo"},{"$f":"'IOM Device'!D43","v":0}]
[null,"I/O Module","NS Sensor",{"$f":"'IOM Device'!B44","v":"NSB8BTN040-0"},{"$f":"'IOM Device'!C44","v":"Temp, No Display, White, Logo"},{"$f":"'IOM Device'!D44","v":0}]
[null,"I/O Module","NS Sensor",{"$f":"'IOM Device'!B45","v":"NSB8BTN041-0"},{"$f":"'IOM Device'!C45","v":"Temp, No Display, White, No Logo"},{"$f":"'IOM Device'!D45","v":0}]
[null,"I/O Module","NS Sensor",{"$f":"'IOM Device'!B46","v":"NSB8BTN140-0"},{"$f":"'IOM Device'!C46","v":"Temp, No Display\\Warmer\\Cooler, White, Logo"},{"$f":"'IOM Device'!D46","v":0}]
[null,"I/O Module","NS Sensor",{"$f":"'IOM Device'!B47","v":"NSB8BTN142-0"},{"$f":"'IOM Device'!C47","v":"Temp, No Display\\Warmer\\Cooler, Black, Logo"},{"$f":"'IOM Device'!D47","v":0}]
[null,"I/O Module","NS Sensor",{"$f":"'IOM Device'!B48","v":"NSB8BTN141-0"},{"$f":"'IOM Device'!C48","v":"Temp, No Display\\Warmer\\Cooler, White, No Logo"},{"$f":"'IOM Device'!D48","v":0}]
[null,"I/O Module","NS Sensor",{"$f":"'IOM Device'!B49","v":"NSB8BTC340-0"},{"$f":"'IOM Device'!C49","v":"Temp, CO2, Color Display, White Logo"},{"$f":"'IOM Device'!D49","v":0}]
[null,"I/O Module","NS Sensor",{"$f":"'IOM Device'!B50","v":"NSB8BTC341-0"},{"$f":"'IOM Device'!C50","v":"Temp, CO2, Color Display, White No Logo"},{"$f":"'IOM Device'!D50","v":0}]
[null,"I/O Module","NS Sensor",{"$f":"'IOM Device'!B51","v":"NSB8BHN340-0"},{"$f":"'IOM Device'!C51","v":"Temp, 3%RH, Color Display, White, Logo"},{"$f":"'IOM Device'!D51","v":0}]
[null,"I/O Module","NS Sensor",{"$f":"'IOM Device'!B52","v":"NSB8BHN341-0"},{"$f":"'IOM Device'!C52","v":"Temp, 3%RH, Color Display, White, No Logo"},{"$f":"'IOM Device'!D52","v":0}]
[null,"I/O Module","NS Sensor",{"$f":"'IOM Device'!B53","v":"NSB8BHN240-0"},{"$f":"'IOM Device'!C53","v":"Temp, 3%RH, Monochrome Display, White, Logo"},{"$f":"'IOM Device'!D53","v":0}]
[null,"I/O Module","NS Sensor",{"$f":"'IOM Device'!B54","v":"NSB8BHN242-0"},{"$f":"'IOM Device'!C54","v":"Temp, 3%RH, Monochrome Display, Black, Logo"},{"$f":"'IOM Device'!D54","v":0}]
[null,"I/O Module","NS Sensor",{"$f":"'IOM Device'!B55","v":"NSB8BHN241-0"},{"$f":"'IOM Device'!C55","v":"Temp, 3%RH, Monochrome Display, White, No Logo"},{"$f":"'IOM Device'!D55","v":0}]
[null,"I/O Module","NS Sensor",{"$f":"'IOM Device'!B56","v":"NSB8BHN340-0"},{"$f":"'IOM Device'!C56","v":"Temp, 3%RH, Color Display, White Logo"},{"$f":"'IOM Device'!D56","v":0}]
[null,"I/O Module","NS Sensor",{"$f":"'IOM Device'!B57","v":"NSB8BHN341-0"},{"$f":"'IOM Device'!C57","v":"Temp, 3%RH, Color Display, White No Logo"},{"$f":"'IOM Device'!D57","v":0}]
[null,"I/O Module","NS Sensor",{"$f":"'IOM Device'!B58","v":"NSB8BHC240-0"},{"$f":"'IOM Device'!C58","v":"Temp, 3%RH, CO2, Monochrome Display, Setpoint, White, Logo"},{"$f":"'IOM Device'!D58","v":0}]
[null,"I/O Module","NS Sensor",{"$f":"'IOM Device'!B59","v":"NSB8BHC242-0"},{"$f":"'IOM Device'!C59","v":"Temp, 3%RH, CO2, Monochrome Display, Setpoint, Black, Logo"},{"$f":"'IOM Device'!D59","v":0}]
[null,"I/O Module","NS Sensor",{"$f":"'IOM Device'!B60","v":"NSB8BHC241-0"},{"$f":"'IOM Device'!C60","v":"Temp, 3%RH, CO2, Monochrome Display, Setpoint, Black, No Logo"},{"$f":"'IOM Device'!D60","v":0}]
[null,"I/O Module","NS Sensor",{"$f":"'IOM Device'!B61","v":"NSB8BHC340-0"},{"$f":"'IOM Device'!C61","v":"Temp, 3%RH, CO2, Color Display, Setpoint, White, Logo"},{"$f":"'IOM Device'!D61","v":0}]
[null,"I/O Module","NS Sensor",{"$f":"'IOM Device'!B62","v":"NSB8BHC341-0"},{"$f":"'IOM Device'!C62","v":"Temp, 3%RH, CO2, Color Display, Setpoint, White, No Logo"},{"$f":"'IOM Device'!D62","v":0}]
[null,"I/O Module","IOM Wireless Receiver",{"$f":"'IOM Device'!B66","v":"WRZ-7860-0"},{"$f":"'IOM Device'!C66","v":"Wireless Receiver, One to Many Sensors (REQUIRED IF CONNECTING WIRELESS SENSORS TO VAC1002)"},{"$f":"'IOM Device'!D66","v":0}]
[null,"I/O Module","IOM Receiver Wire Extder",{"$f":"'IOM Device'!B67","v":"ZFR-CBLEXT-0"},{"$f":"'IOM Device'!C67","v":"RJ12 Extension Cable 10\" for the WRZ-7860-0. (Used to plug into Sensor Bus and an extend outside controller panel)."},{"$f":"'IOM Device'!D67","v":0}]
[null,"I/O Module","IOM Wireless Sensor",{"$f":"'IOM Device'!B68","v":"WRZ-STR0000-2"},{"$f":"'IOM Device'!C68","v":"Wireless Refrigerator/Freezer Temperature Transmitter"},{"$f":"'IOM Device'!D68","v":0}]
[null,"I/O Module","IOM Wireless Sensor",{"$f":"'IOM Device'!B69","v":"WRZ-RMT10K-2"},{"$f":"'IOM Device'!C69","v":"Wireless Room Temperature Sensor Transmitter for Remote 10K Temperature Probes"},{"$f":"'IOM Device'!D69","v":0}]
[null,"I/O Module","IOM Wireless Sensor",{"$f":"'IOM Device'!B70","v":"WRZ-TTR0000-2"},{"$f":"'IOM Device'!C70","v":"Wireless Room Temperature Sensor Transmitter with Battery Level/Signal Strength LED, No Setpoint Adjustment"},{"$f":"'IOM Device'!D70","v":0}]
[null,"I/O Module","IOM Wireless Sensor",{"$f":"'IOM Device'!B71","v":"WRZ-THN0000-2"},{"$f":"'IOM Device'!C71","v":"Wireless Room Temperature and Humidity Sensor Transmitter with Battery Level/Signal Strength LED "},{"$f":"'IOM Device'!D71","v":0}]
[null,"Energy Meter","IOM Energy Meter",{"$f":"'IOM Device - Energy Meter'!F9","v":"SENVA-01-EMC-?-?-?"},"Energy Meter",{"$f":"'IOM Device - Energy Meter'!G9","v":0}]
[null,"Energy Meter","IOM Energy Meter",{"$f":"'IOM Device - Energy Meter'!F10","v":"SENVA-01-EMC-?-?-?"},"Energy Meter",{"$f":"'IOM Device - Energy Meter'!G10","v":0}]
[null,"Energy Meter","IOM Energy Meter",{"$f":"'IOM Device - Energy Meter'!F11","v":"SENVA-01-EMC-?-?-?"},"Energy Meter",{"$f":"'IOM Device - Energy Meter'!G11","v":0}]
[null,"Energy Meter","IOM Energy Meter",{"$f":"'IOM Device - Energy Meter'!F12","v":"SENVA-01-EMC-?-?-?"},"Energy Meter",{"$f":"'IOM Device - Energy Meter'!G12","v":0}]
[null,"Energy Meter","IOM Energy Meter",{"$f":"'IOM Device - Energy Meter'!F13","v":"SENVA-01-EMC-?-?-?"},"Energy Meter",{"$f":"'IOM Device - Energy Meter'!G13","v":0}]
[null,"Energy Meter","IOM Energy Meter",{"$f":"'IOM Device - Energy Meter'!F14","v":"SENVA-01-EMC-?-?-?"},"Energy Meter",{"$f":"'IOM Device - Energy Meter'!G14","v":0}]
[null,"Energy Meter","IOM Energy Meter",{"$f":"'IOM Device - Energy Meter'!F15","v":"SENVA-01-EMC-?-?-?"},"Energy Meter",{"$f":"'IOM Device - Energy Meter'!G15","v":0}]
[null,"Energy Meter","IOM Energy Meter",{"$f":"'IOM Device - Energy Meter'!F16","v":"SENVA-01-EMC-?-?-?"},"Energy Meter",{"$f":"'IOM Device - Energy Meter'!G16","v":0}]
[null,"SZ - Smart Equipment","NS Sensor",{"$f":"'SZ - Smart Equipment'!B7","v":"NSB8BTN340-0"},{"$f":"'SZ - Smart Equipment'!C7","v":"Temp, Color Display, Setpoint, White, Logo"},{"$f":"'SZ - Smart Equipment'!D7","v":0}]
[null,"SZ - Smart Equipment","NS Sensor",{"$f":"'SZ - Smart Equipment'!B8","v":"NSB8BTN341-0"},{"$f":"'SZ - Smart Equipment'!C8","v":"Temp, Color Display, Setpoint, White, No Logo"},{"$f":"'SZ - Smart Equipment'!D8","v":0}]
[null,"SZ - Smart Equipment","NS Sensor",{"$f":"'SZ - Smart Equipment'!B9","v":"NSB8BTN240-0"},{"$f":"'SZ - Smart Equipment'!C9","v":"Temp, Monochrome Display, Setpoint, White, Logo"},{"$f":"'SZ - Smart Equipment'!D9","v":0}]
[null,"SZ - Smart Equipment","NS Sensor",{"$f":"'SZ - Smart Equipment'!B10","v":"NSB8BTN242-0"},{"$f":"'SZ - Smart Equipment'!C10","v":"Temp, Monochrome Display, Setpoint, Black, Logo"},{"$f":"'SZ - Smart Equipment'!D10","v":0}]
[null,"SZ - Smart Equipment","NS Sensor",{"$f":"'SZ - Smart Equipment'!B11","v":"NSB8BTN241-0"},{"$f":"'SZ - Smart Equipment'!C11","v":"Temp, Monochrome Display, Setpoint, White, No Logo"},{"$f":"'SZ - Smart Equipment'!D11","v":0}]
[null,"SZ - Smart Equipment","NS Sensor",{"$f":"'SZ - Smart Equipment'!B12","v":"NSB8BTN040-0"},{"$f":"'SZ - Smart Equipment'!C12","v":"Temp, No Display, White, Logo"},{"$f":"'SZ - Smart Equipment'!D12","v":0}]
[null,"SZ - Smart Equipment","NS Sensor",{"$f":"'SZ - Smart Equipment'!B13","v":"NSB8BTN041-0"},{"$f":"'SZ - Smart Equipment'!C13","v":"Temp, No Display, White, No Logo"},{"$f":"'SZ - Smart Equipment'!D13","v":0}]
[null,"SZ - Smart Equipment","NS Sensor",{"$f":"'SZ - Smart Equipment'!B14","v":"NSB8BTN140-0"},{"$f":"'SZ - Smart Equipment'!C14","v":"Temp, No Display\\Warmer\\Cooler, White, Logo"},{"$f":"'SZ - Smart Equipment'!D14","v":0}]
[null,"SZ - Smart Equipment","NS Sensor",{"$f":"'SZ - Smart Equipment'!B15","v":"NSB8BTN142-0"},{"$f":"'SZ - Smart Equipment'!C15","v":"Temp, No Display\\Warmer\\Cooler, Black, Logo"},{"$f":"'SZ - Smart Equipment'!D15","v":0}]
[null,"SZ - Smart Equipment","NS Sensor",{"$f":"'SZ - Smart Equipment'!B16","v":"NSB8BTN141-0"},{"$f":"'SZ - Smart Equipment'!C16","v":"Temp, No Display\\Warmer\\Cooler, White, No Logo"},{"$f":"'SZ - Smart Equipment'!D16","v":0}]
[null,"SZ - Smart Equipment","NS Sensor",{"$f":"'SZ - Smart Equipment'!B17","v":"NSB8BTC340-0"},{"$f":"'SZ - Smart Equipment'!C17","v":"Temp, CO2, Color Display, White Logo"},{"$f":"'SZ - Smart Equipment'!D17","v":0}]
[null,"SZ - Smart Equipment","NS Sensor",{"$f":"'SZ - Smart Equipment'!B18","v":"NSB8BTC341-0"},{"$f":"'SZ - Smart Equipment'!C18","v":"Temp, CO2, Color Display, White No Logo"},{"$f":"'SZ - Smart Equipment'!D18","v":0}]
[null,"SZ - Smart Equipment","NS Sensor",{"$f":"'SZ - Smart Equipment'!B19","v":"NSB8BHN340-0"},{"$f":"'SZ - Smart Equipment'!C19","v":"Temp, 3%RH, Color Display, White, Logo"},{"$f":"'SZ - Smart Equipment'!D19","v":0}]
[null,"SZ - Smart Equipment","NS Sensor",{"$f":"'SZ - Smart Equipment'!B20","v":"NSB8BHN341-0"},{"$f":"'SZ - Smart Equipment'!C20","v":"Temp, 3%RH, Color Display, White, No Logo"},{"$f":"'SZ - Smart Equipment'!D20","v":0}]
[null,"SZ - Smart Equipment","NS Sensor",{"$f":"'SZ - Smart Equipment'!B21","v":"NSB8BHN240-0"},{"$f":"'SZ - Smart Equipment'!C21","v":"Temp, 3%RH, Monochrome Display, White, Logo"},{"$f":"'SZ - Smart Equipment'!D21","v":0}]
[null,"SZ - Smart Equipment","NS Sensor",{"$f":"'SZ - Smart Equipment'!B22","v":"NSB8BHN242-0"},{"$f":"'SZ - Smart Equipment'!C22","v":"Temp, 3%RH, Monochrome Display, Black, Logo"},{"$f":"'SZ - Smart Equipment'!D22","v":0}]
[null,"SZ - Smart Equipment","NS Sensor",{"$f":"'SZ - Smart Equipment'!B23","v":"NSB8BHN241-0"},{"$f":"'SZ - Smart Equipment'!C23","v":"Temp, 3%RH, Monochrome Display, White, No Logo"},{"$f":"'SZ - Smart Equipment'!D23","v":0}]
[null,"SZ - Smart Equipment","NS Sensor",{"$f":"'SZ - Smart Equipment'!B24","v":"NSB8BHN340-0"},{"$f":"'SZ - Smart Equipment'!C24","v":"Temp, 3%RH, Color Display, White Logo"},{"$f":"'SZ - Smart Equipment'!D24","v":0}]
[null,"SZ - Smart Equipment","NS Sensor",{"$f":"'SZ - Smart Equipment'!B25","v":"NSB8BHN341-0"},{"$f":"'SZ - Smart Equipment'!C25","v":"Temp, 3%RH, Color Display, White No Logo"},{"$f":"'SZ - Smart Equipment'!D25","v":0}]
[null,"SZ - Smart Equipment","NS Sensor",{"$f":"'SZ - Smart Equipment'!B26","v":"NSB8BHC240-0"},{"$f":"'SZ - Smart Equipment'!C26","v":"Temp, 3%RH, CO2, Monochrome Display, Setpoint, White, Logo"},{"$f":"'SZ - Smart Equipment'!D26","v":0}]
[null,"SZ - Smart Equipment","NS Sensor",{"$f":"'SZ - Smart Equipment'!B27","v":"NSB8BHC242-0"},{"$f":"'SZ - Smart Equipment'!C27","v":"Temp, 3%RH, CO2, Monochrome Display, Setpoint, Black, Logo"},{"$f":"'SZ - Smart Equipment'!D27","v":0}]
[null,"SZ - Smart Equipment","NS Sensor",{"$f":"'SZ - Smart Equipment'!B28","v":"NSB8BHC241-0"},{"$f":"'SZ - Smart Equipment'!C28","v":"Temp, 3%RH, CO2, Monochrome Display, Setpoint, Black, No Logo"},{"$f":"'SZ - Smart Equipment'!D28","v":0}]
[null,"SZ - Smart Equipment","NS Sensor",{"$f":"'SZ - Smart Equipment'!B29","v":"NSB8BHC340-0"},{"$f":"'SZ - Smart Equipment'!C29","v":"Temp, 3%RH, CO2, Color Display, Setpoint, White, Logo"},{"$f":"'SZ - Smart Equipment'!D29","v":0}]
[null,"SZ - Smart Equipment","NS Sensor",{"$f":"'SZ - Smart Equipment'!B30","v":"NSB8BHC341-0"},{"$f":"'SZ - Smart Equipment'!C30","v":"Temp, 3%RH, CO2, Color Display, Setpoint, White, No Logo"},{"$f":"'SZ - Smart Equipment'!D30","v":0}]
[null,"SZ - Smart Equipment","SSE Comm Card",{"$f":"'SZ - Smart Equipment'!B34","v":"SE-COM1001-0"},{"$f":"'SZ - Smart Equipment'!C34","v":"Smart Equipment BACnet Communications Card. Required!"},{"$f":"'SZ - Smart Equipment'!D34","v":0}]
[null,"SZ - 3rd Party Units","Thermostat",{"$f":"'SZ - 3rd Party Equipment'!B7","v":"TEC3630-13-000"},{"$f":"'SZ - 3rd Party Equipment'!C7","v":"RTU\\Heat Pump, Economizer, JCI Logo, Black"},{"$f":"'SZ - 3rd Party Equipment'!D7","v":0}]
[null,"SZ - 3rd Party Units","Thermostat",{"$f":"'SZ - 3rd Party Equipment'!B8","v":"TEC3630-15-000"},{"$f":"'SZ - 3rd Party Equipment'!C8","v":"RTU\\Heat Pump, Economizer, No Logo, Black"},{"$f":"'SZ - 3rd Party Equipment'!D8","v":0}]
[null,"SZ - 3rd Party Units","Thermostat",{"$f":"'SZ - 3rd Party Equipment'!B9","v":"TEC3630-14-000"},{"$f":"'SZ - 3rd Party Equipment'!C9","v":"RTU\\Heat Pump, Economizer, JCI Logo, White"},{"$f":"'SZ - 3rd Party Equipment'!D9","v":0}]
[null,"SZ - 3rd Party Units","Thermostat",{"$f":"'SZ - 3rd Party Equipment'!B10","v":"TEC3630-16-000"},{"$f":"'SZ - 3rd Party Equipment'!C10","v":"RTU\\Heat Pump, Economizer, No Logo, White"},{"$f":"'SZ - 3rd Party Equipment'!D10","v":0}]
[null,"SZ - 3rd Party Units","Thermostat",{"$f":"'SZ - 3rd Party Equipment'!B11","v":"TEC3631-13-000"},{"$f":"'SZ - 3rd Party Equipment'!C11","v":"RTU\\Heat Pump, Economizer, JCI Logo, Black, Occupancy"},{"$f":"'SZ - 3rd Party Equipment'!D11","v":0}]
[null,"SZ - 3rd Party Units","Thermostat",{"$f":"'SZ - 3rd Party Equipment'!B12","v":"TEC3631-14-000"},{"$f":"'SZ - 3rd Party Equipment'!C12","v":"RTU\\Heat Pump, Economizer, JCI Logo, White, Occupancy"},{"$f":"'SZ - 3rd Party Equipment'!D12","v":0}]
[null,"SZ - 3rd Party Units","Supply Temp Sensor",{"$f":"'SZ - 3rd Party Equipment'!B16","v":"TE-6311M-1"},{"$f":"'SZ - 3rd Party Equipment'!C16","v":"8\" Supply Air Duct Sensor, Metal Enclosure, Nickel (Optional for RTU, Furnace, Heat Pumps, Unit Heater)"},{"$f":"'SZ - 3rd Party Equipment'!D16","v":0}]
[null,"SZ - 3rd Party Units","Outside Temp Sensor",{"$f":"'SZ - 3rd Party Equipment'!B17","v":"TE-6313P-1"},{"$f":"'SZ - 3rd Party Equipment'!C17","v":"Outside Air Sensor, Nickel (Optional for RTU, Furnace, Heat Pumps)(Required if you are economizing)"},{"$f":"'SZ - 3rd Party Equipment'!D17","v":0}]
[null,"SZ - 3rd Party Units","Remote Sensor",{"$f":"'SZ - 3rd Party Equipment'!B18","v":"SEN-600-1"},{"$f":"'SZ - 3rd Party Equipment'!C18","v":"Remote Indoor Wall Temperature Sensor, 1k ohm, Nickel (Optional, up to 3 for averaging)"},{"$f":"'SZ - 3rd Party Equipment'!D18","v":0}]
[null,"SZ - 3rd Party Units","Current Switch",{"$f":"'SZ - 3rd Party Equipment'!B19","v":"CSD-CF0A0-1"},{"$f":"'SZ - 3rd Party Equipment'!C19","v":"Fan Status current switch, Split Core, 0.15 A Fixed Switch Setpoint 0.15 to 200 A Range (Optional)"},{"$f":"'SZ - 3rd Party Equipment'!D19","v":0}]
[null,"SZ - 3rd Party Units","Actuator",{"$f":"'SZ - 3rd Party Equipment'!B20","v":"M9208-GGA-3"},{"$f":"'SZ - 3rd Party Equipment'!C20","v":"Damper Actuator, 70in-lb spring return actuator proportional (Optional unless you are doing economization)"},{"$f":"'SZ - 3rd Party Equipment'!D20","v":0}]
[null,"SZ - 3rd Party Units","Actuator Mounting Kit",{"$f":"'SZ - 3rd Party Equipment'!B21","v":"M9208-250"},{"$f":"'SZ - 3rd Party Equipment'!C21","v":"Remote mounting kit with crankarm and damper linkage. (Used when actuator is not directly mounted on a shaft)"},{"$f":"'SZ - 3rd Party Equipment'!D21","v":0}]
[null,"SZ - 3rd Party Units","Wall Plate",{"$f":"'SZ - 3rd Party Equipment'!B22","v":"TEC-WALLPLT"},{"$f":"'SZ - 3rd Party Equipment'!C22","v":"TEC3000 Wall Plate (Optional to cover larger openings)"},{"$f":"'SZ - 3rd Party Equipment'!D22","v":0}]
[null,"MZ- Zone Coordinator","Zone Coordinator",{"$f":"'MZ- Zone Coordinator'!B7","v":"LC-VZC100-0"},{"$f":"'MZ- Zone Coordinator'!C7","v":"Verasys Zoning Coordinator for VAV and COBP applications (Loose Board Version)"},{"$f":"'MZ- Zone Coordinator'!D7","v":0}]
[null,"MZ- Zone Coordinator","Zone Coordinator",{"$f":"'MZ- Zone Coordinator'!B8","v":"LC-VZCPNL-0"},{"$f":"'MZ- Zone Coordinator'!C8","v":"Verasys Zoning Coordinator for VAV and COBP applications (Panel Version)"},{"$f":"'MZ- Zone Coordinator'!D8","v":0}]
[null,"MZ- Zone Coordinator","Zone Power",{"$f":"'MZ- Zone Coordinator'!B12","v":"Y65T42-0"},{"$f":"'MZ- Zone Coordinator'!C12","v":"120/208/240 to 24V XFR 40VA (Power for 2 Controllers)"},{"$f":"'MZ- Zone Coordinator'!D12","v":0}]
[null,"MZ- Zone Coordinator","Zone Power",{"$f":"'MZ- Zone Coordinator'!B13","v":"PSH100A"},{"$f":"'MZ- Zone Coordinator'!C13","v":"120V to 24V XFR, 100VA (Power for 6 Controllers)"},{"$f":"'MZ- Zone Coordinator'!D13","v":0}]
[null,"MZ- Zone Coordinator","Zone Power",{"$f":"'MZ- Zone Coordinator'!B14","v":"PSH300A"},{"$f":"'MZ- Zone Coordinator'!C14","v":"480/277/240/120V to 24V XFR, 3 Circuits 100VA each (Power for 18 Controllers)"},{"$f":"'MZ- Zone Coordinator'!D14","v":0}]
[null,"MZ- Zone Coordinator","Zone Power",{"$f":"'MZ- Zone Coordinator'!B15","v":"PSH500A"},{"$f":"'MZ- Zone Coordinator'!C15","v":"480/277/240/120V  to 24V XFR,5 Circuits 100VA each (Power for 30 Controllers)"},{"$f":"'MZ- Zone Coordinator'!D15","v":0}]
[null,"MZ- Zone Coordinator","Zone Power",{"$f":"'MZ- Zone Coordinator'!B19","v":"CBL-18/2GRY-PLN-BOX"},{"$f":"'MZ- Zone Coordinator'!C19","v":"18awg stranded power wire for ZEC, BYP, & VZC"},{"$f":"'MZ- Zone Coordinator'!D19","v":0}]
[null,"MZ - Smart Equipment","SSE Comm Card",{"$f":"'MZ- Smart Equipment'!B7","v":"SE-COM1001-0"},{"$f":"'MZ- Smart Equipment'!C7","v":"Smart Equipment BACnet Communications Card Required!"},{"$f":"'MZ- Smart Equipment'!D7","v":0}]
[null,"MZ- 3rd Party Units","3rd Party Controller",{"$f":"'MZ- 3rd Party Units'!B7","v":"LC-VEC100-0"},{"$f":"'MZ- 3rd Party Units'!C7","v":"Verasys Equipment Controller, 3rd Party RTU (VAV, COPB) (Not Needed on an RTU with an SSE Board)"},{"$f":"'MZ- 3rd Party Units'!D7","v":0}]
[null,"MZ- 3rd Party Units","Duct Sensors",{"$f":"'MZ- 3rd Party Units'!B11","v":"TE-6311M-1"},{"$f":"'MZ- 3rd Party Units'!C11","v":" For Supply Air Temperature (Mandatory), Return Air Temperature (Optional) "},{"$f":"'MZ- 3rd Party Units'!D11","v":0}]
[null,"MZ- 3rd Party Units","Static Pressure Sensor",{"$f":"'MZ- 3rd Party Units'!B12","v":"TE-6313P-1"},{"$f":"'MZ- 3rd Party Units'!C12","v":"Outside Air Sensor, Nickel (Manditory if you are doing economization)"},{"$f":"'MZ- 3rd Party Units'!D12","v":0}]
[null,"MZ- 3rd Party Units","Static Pressure Probe",{"$f":"'MZ- 3rd Party Units'!B13","v":"DP140005U11D"},{"$f":"'MZ- 3rd Party Units'!C13","v":"Duct Static Pressure-Low Differential Pressure Transducer (0-5 in WC, 0-5VDC)(Required for VAV)"},{"$f":"'MZ- 3rd Party Units'!D13","v":0}]
[null,"MZ- 3rd Party Units","Outside Temp",{"$f":"'MZ- 3rd Party Units'!B14","v":"FTG18A-600R"},{"$f":"'MZ- 3rd Party Units'!C14","v":"Duct Static Pressure Probe.  (Need one per DPT)"},{"$f":"'MZ- 3rd Party Units'!D14","v":0}]
[null,"MZ- 3rd Party Units","Filter Status",{"$f":"'MZ- 3rd Party Units'!B15","v":"P32AC-2C"},{"$f":"'MZ- 3rd Party Units'!C15","v":"Filter Status-Differential Pressure Switch, Single-Pole, Double-Throw (SPDT), 0.05 to 5 in. W.C."},{"$f":"'MZ- 3rd Party Units'!D15","v":0}]
[null,"MZ- 3rd Party Units","Filter Status Probe",{"$f":"'MZ- 3rd Party Units'!B16","v":"FTG18A-600R"},{"$f":"'MZ- 3rd Party Units'!C16","v":"Duct Static Pressure Probe Kit: 4 in. Flanged Sensing Tube"},{"$f":"'MZ- 3rd Party Units'!D16","v":0}]
[null,"MZ- 3rd Party Units","Fan Status",{"$f":"'MZ- 3rd Party Units'!B17","v":"CSD-CF0A0-1"},{"$f":"'MZ- 3rd Party Units'!C17","v":"Fan Status-Current switch, Split Core, 0.15 A Fixed Switch Setpoint 0.15 to 200 A Range"},{"$f":"'MZ- 3rd Party Units'!D17","v":0}]
[null,"MZ- 3rd Party Units","Return CO2 Sensor",{"$f":"'MZ- 3rd Party Units'!B18","v":"CD-P1000-00-00"},{"$f":"'MZ- 3rd Party Units'!C18","v":"Duct Mount CO2 Transmitter 0–10 VDC, 0–2,000 ppm CO2 (Optional unless you are doing Deman Ventilation Control)"},{"$f":"'MZ- 3rd Party Units'!D18","v":0}]
[null,"MZ- 3rd Party Units","Damper Actuator",{"$f":"'MZ- 3rd Party Units'!B19","v":"M9208-GGA-3"},{"$f":"'MZ- 3rd Party Units'!C19","v":"Damper Actuator 70in-lb spring return actuator proportional (Optional unless you are doing economization)"},{"$f":"'MZ- 3rd Party Units'!D19","v":0}]
[null,"MZ- 3rd Party Units","Damper Actuator Kit",{"$f":"'MZ- 3rd Party Units'!B20","v":"M9208-250"},{"$f":"'MZ- 3rd Party Units'!C20","v":"Remote mounting kit with crankarm and damper linkage (Used when actuator is not directly mounted on a shaft)"},{"$f":"'MZ- 3rd Party Units'!D20","v":0}]
[null,"MZ- VAV Zones","Controller",{"$f":"'MZ- VAV Zones'!B7","v":"LC-ZEC510-1"},{"$f":"'MZ- VAV Zones'!C7","v":"Configurable VAV Box Controller, All Fan Types, Staged/Incremental/SCR/Cooling-Only"},{"$f":"'MZ- VAV Zones'!D7","v":0}]
[null,"MZ- VAV Zones","NS Sensor",{"$f":"'MZ- VAV Zones'!B11","v":"NSB8BTN340-0"},{"$f":"'MZ- VAV Zones'!C11","v":"Temp, Color Display, Setpoint, White, Logo"},{"$f":"'MZ- VAV Zones'!D11","v":0}]
[null,"MZ- VAV Zones","NS Sensor",{"$f":"'MZ- VAV Zones'!B12","v":"NSB8BTN341-0"},{"$f":"'MZ- VAV Zones'!C12","v":"Temp, Color Display, Setpoint, White, No Logo"},{"$f":"'MZ- VAV Zones'!D12","v":0}]
[null,"MZ- VAV Zones","NS Sensor",{"$f":"'MZ- VAV Zones'!B13","v":"NSB8BTN240-0"},{"$f":"'MZ- VAV Zones'!C13","v":"Temp, Monochrome Display, Setpoint, White, Logo"},{"$f":"'MZ- VAV Zones'!D13","v":0}]
[null,"MZ- VAV Zones","NS Sensor",{"$f":"'MZ- VAV Zones'!B14","v":"NSB8BTN242-0"},{"$f":"'MZ- VAV Zones'!C14","v":"Temp, Monochrome Display, Setpoint, Black, Logo"},{"$f":"'MZ- VAV Zones'!D14","v":0}]
[null,"MZ- VAV Zones","NS Sensor",{"$f":"'MZ- VAV Zones'!B15","v":"NSB8BTN241-0"},{"$f":"'MZ- VAV Zones'!C15","v":"Temp, Monochrome Display, Setpoint, White, No Logo"},{"$f":"'MZ- VAV Zones'!D15","v":0}]
[null,"MZ- VAV Zones","NS Sensor",{"$f":"'MZ- VAV Zones'!B16","v":"NSB8BTN040-0"},{"$f":"'MZ- VAV Zones'!C16","v":"Temp, No Display, White, Logo"},{"$f":"'MZ- VAV Zones'!D16","v":0}]
[null,"MZ- VAV Zones","NS Sensor",{"$f":"'MZ- VAV Zones'!B17","v":"NSB8BTN041-0"},{"$f":"'MZ- VAV Zones'!C17","v":"Temp, No Display, White, No Logo"},{"$f":"'MZ- VAV Zones'!D17","v":0}]
[null,"MZ- VAV Zones","NS Sensor",{"$f":"'MZ- VAV Zones'!B18","v":"NSB8BTN140-0"},{"$f":"'MZ- VAV Zones'!C18","v":"Temp, No Display\\Warmer\\Cooler, White, Logo"},{"$f":"'MZ- VAV Zones'!D18","v":0}]
[null,"MZ- VAV Zones","NS Sensor",{"$f":"'MZ- VAV Zones'!B19","v":"NSB8BTN142-0"},{"$f":"'MZ- VAV Zones'!C19","v":"Temp, No Display\\Warmer\\Cooler, Black, Logo"},{"$f":"'MZ- VAV Zones'!D19","v":0}]
[null,"MZ- VAV Zones","NS Sensor",{"$f":"'MZ- VAV Zones'!B20","v":"NSB8BTN141-0"},{"$f":"'MZ- VAV Zones'!C20","v":"Temp, No Display\\Warmer\\Cooler, White, No Logo"},{"$f":"'MZ- VAV Zones'!D20","v":0}]
[null,"MZ- VAV Zones","NS Sensor",{"$f":"'MZ- VAV Zones'!B21","v":"NSB8BTC340-0"},{"$f":"'MZ- VAV Zones'!C21","v":"Temp, CO2, Color Display, White Logo"},{"$f":"'MZ- VAV Zones'!D21","v":0}]
[null,"MZ- VAV Zones","NS Sensor",{"$f":"'MZ- VAV Zones'!B22","v":"NSB8BTC341-0"},{"$f":"'MZ- VAV Zones'!C22","v":"Temp, CO2, Color Display, White No Logo"},{"$f":"'MZ- VAV Zones'!D22","v":0}]
[null,"MZ- VAV Zones","NS Sensor",{"$f":"'MZ- VAV Zones'!B23","v":"NSB8BHN340-0"},{"$f":"'MZ- VAV Zones'!C23","v":"Temp, 3%RH, Color Display, White, Logo"},{"$f":"'MZ- VAV Zones'!D23","v":0}]
[null,"MZ- VAV Zones","NS Sensor",{"$f":"'MZ- VAV Zones'!B24","v":"NSB8BHN341-0"},{"$f":"'MZ- VAV Zones'!C24","v":"Temp, 3%RH, Color Display, White, No Logo"},{"$f":"'MZ- VAV Zones'!D24","v":0}]
[null,"MZ- VAV Zones","NS Sensor",{"$f":"'MZ- VAV Zones'!B25","v":"NSB8BHN240-0"},{"$f":"'MZ- VAV Zones'!C25","v":"Temp, 3%RH, Monochrome Display, White, Logo"},{"$f":"'MZ- VAV Zones'!D25","v":0}]
[null,"MZ- VAV Zones","NS Sensor",{"$f":"'MZ- VAV Zones'!B26","v":"NSB8BHN242-0"},{"$f":"'MZ- VAV Zones'!C26","v":"Temp, 3%RH, Monochrome Display, Black, Logo"},{"$f":"'MZ- VAV Zones'!D26","v":0}]
[null,"MZ- VAV Zones","NS Sensor",{"$f":"'MZ- VAV Zones'!B27","v":"NSB8BHN241-0"},{"$f":"'MZ- VAV Zones'!C27","v":"Temp, 3%RH, Monochrome Display, White, No Logo"},{"$f":"'MZ- VAV Zones'!D27","v":0}]
[null,"MZ- VAV Zones","NS Sensor",{"$f":"'MZ- VAV Zones'!B28","v":"NSB8BHN340-0"},{"$f":"'MZ- VAV Zones'!C28","v":"Temp, 3%RH, Color Display, White Logo"},{"$f":"'MZ- VAV Zones'!D28","v":0}]
[null,"MZ- VAV Zones","NS Sensor",{"$f":"'MZ- VAV Zones'!B29","v":"NSB8BHN341-0"},{"$f":"'MZ- VAV Zones'!C29","v":"Temp, 3%RH, Color Display, White No Logo"},{"$f":"'MZ- VAV Zones'!D29","v":0}]
[null,"MZ- VAV Zones","NS Sensor",{"$f":"'MZ- VAV Zones'!B30","v":"NSB8BHC240-0"},{"$f":"'MZ- VAV Zones'!C30","v":"Temp, 3%RH, CO2, Monochrome Display, Setpoint, White, Logo"},{"$f":"'MZ- VAV Zones'!D30","v":0}]
[null,"MZ- VAV Zones","NS Sensor",{"$f":"'MZ- VAV Zones'!B31","v":"NSB8BHC242-0"},{"$f":"'MZ- VAV Zones'!C31","v":"Temp, 3%RH, CO2, Monochrome Display, Setpoint, Black, Logo"},{"$f":"'MZ- VAV Zones'!D31","v":0}]
[null,"MZ- VAV Zones","NS Sensor",{"$f":"'MZ- VAV Zones'!B32","v":"NSB8BHC241-0"},{"$f":"'MZ- VAV Zones'!C32","v":"Temp, 3%RH, CO2, Monochrome Display, Setpoint, Black, No Logo"},{"$f":"'MZ- VAV Zones'!D32","v":0}]
[null,"MZ- VAV Zones","NS Sensor",{"$f":"'MZ- VAV Zones'!B33","v":"NSB8BHC340-0"},{"$f":"'MZ- VAV Zones'!C33","v":"Temp, 3%RH, CO2, Color Display, Setpoint, White, Logo"},{"$f":"'MZ- VAV Zones'!D33","v":0}]
[null,"MZ- VAV Zones","NS Sensor",{"$f":"'MZ- VAV Zones'!B34","v":"NSB8BHC341-0"},{"$f":"'MZ- VAV Zones'!C34","v":"Temp, 3%RH, CO2, Color Display, Setpoint, White, No Logo"},{"$f":"'MZ- VAV Zones'!D34","v":0}]
[null,"MZ- VAV Zones","Duct Sensors",{"$f":"'MZ- VAV Zones'!B38","v":"TE-631GV-2"},{"$f":"'MZ- VAV Zones'!C38","v":"4\" Duct Sensor for VAV Flange Mount, Nickel, 10ft plenum Cable (required for standlone ZEC510)"},{"$f":"'MZ- VAV Zones'!D38","v":0}]
[null,"MZ- VAV Zones","Balancing Tool",{"$f":"'MZ- VAV Zones'!B39","v":"NS-ATV7003-0"},{"$f":"'MZ- VAV Zones'!C39","v":"VAV Box Balancing Thermostat (Optional for contractor to balance VAV box)"},{"$f":"'MZ- VAV Zones'!D39","v":0}]
[null,"MZ- VAV Zones","Commissioning Tool",{"$f":"'MZ- VAV Zones'!B40","v":"TL-CWCVT-0"},{"$f":"'MZ- VAV Zones'!C40","v":"Commissioning Tool (Optional.  MAP replacement.  Used to commssion standalone ZEC510s)"},{"$f":"'MZ- VAV Zones'!D40","v":0}]
[null,"MZ- VAV Zones","Power Supply",{"$f":"'MZ- VAV Zones'!B44","v":"Y65T42-0"},{"$f":"'MZ- VAV Zones'!C44","v":"120/208/240 to 24V XFR 40VA (Power for 2 Controllers)"},{"$f":"'MZ- VAV Zones'!D38","v":0}]
[null,"MZ- VAV Zones","Power Supply",{"$f":"'MZ- VAV Zones'!B45","v":"PSH100A"},{"$f":"'MZ- VAV Zones'!C45","v":"120V to 24V XFR, 100VA (Power for 6 Controllers)"},{"$f":"'MZ- VAV Zones'!D45","v":0}]
[null,"MZ- VAV Zones","Power Supply",{"$f":"'MZ- VAV Zones'!B46","v":"PSH300A"},{"$f":"'MZ- VAV Zones'!C46","v":"480/277/240/120V to 24V XFR, 3 Circuits 100VA each (Power for 18 Controllers)"},{"$f":"'MZ- VAV Zones'!D46","v":0}]
[null,"MZ- VAV Zones","Power Supply",{"$f":"'MZ - COBP Zones'!B47","v":"NSB8BTN142-0"},{"$f":"'MZ- VAV Zones'!C47","v":"480/277/240/120V to 24V XFR, 5 Circuits 100VA each (Power for 30 Controllers)"},{"$f":"'MZ- VAV Zones'!D47","v":0}]
[null,"MZ - COBP Zones","Zone Controller",{"$f":"'MZ - COBP Zones'!B7","v":"LC-ZEC310-0"},{"$f":"'MZ - COBP Zones'!C7","v":"Field Installed, Zone Damper Controller No Damper"},{"$f":"'MZ - COBP Zones'!D7","v":0}]
[null,"MZ - COBP Zones","Damper",{"$f":"'MZ - COBP Zones'!B8","v":"RCG04B"},{"$f":"'MZ - COBP Zones'!C8","v":"4\" Round Zone/Bypass Damper No Controller "},{"$f":"'MZ - COBP Zones'!D8","v":0}]
[null,"MZ - COBP Zones","Damper",{"$f":"'MZ - COBP Zones'!B9","v":"RCG06B"},{"$f":"'MZ - COBP Zones'!C9","v":"6\" Round Zone/Bypass Damper No Controller "},{"$f":"'MZ - COBP Zones'!D9","v":0}]
[null,"MZ - COBP Zones","Damper",{"$f":"'MZ - COBP Zones'!B10","v":"RCG07B"},{"$f":"'MZ - COBP Zones'!C10","v":"7\" Round Zone/Bypass Damper No Controller "},{"$f":"'MZ - COBP Zones'!D10","v":0}]
[null,"MZ - COBP Zones","Damper",{"$f":"'MZ - COBP Zones'!B11","v":"RCG08B"},{"$f":"'MZ - COBP Zones'!C11","v":"8\" Round Zone/Bypass Damper No Controller "},{"$f":"'MZ - COBP Zones'!D11","v":0}]
[null,"MZ - COBP Zones","Damper",{"$f":"'MZ - COBP Zones'!B12","v":"RCG09B"},{"$f":"'MZ - COBP Zones'!C12","v":"9\" Round Zone/Bypass Damper No Controller "},{"$f":"'MZ - COBP Zones'!D12","v":0}]
[null,"MZ - COBP Zones","Damper",{"$f":"'MZ - COBP Zones'!B13","v":"RCG10B"},{"$f":"'MZ - COBP Zones'!C13","v":"10\" Round Zone/Bypass Damper No Controller "},{"$f":"'MZ - COBP Zones'!D13","v":0}]
[null,"MZ - COBP Zones","Damper",{"$f":"'MZ - COBP Zones'!B14","v":"RCG11B"},{"$f":"'MZ - COBP Zones'!C14","v":"11\" Round Zone/Bypass Damper No Controller "},{"$f":"'MZ - COBP Zones'!D14","v":0}]
[null,"MZ - COBP Zones","Damper",{"$f":"'MZ - COBP Zones'!B15","v":"RCG12B"},{"$f":"'MZ - COBP Zones'!C15","v":"12\" Round Zone/Bypass Damper No Controller "},{"$f":"'MZ - COBP Zones'!D15","v":0}]
[null,"MZ - COBP Zones","Damper",{"$f":"'MZ - COBP Zones'!B16","v":"RCG13B"},{"$f":"'MZ - COBP Zones'!C16","v":"13\" Round Zone/Bypass Damper No Controller "},{"$f":"'MZ - COBP Zones'!D16","v":0}]
[null,"MZ - COBP Zones","Damper",{"$f":"'MZ - COBP Zones'!B17","v":"RCG14B"},{"$f":"'MZ - COBP Zones'!C17","v":"14\" Round Zone/Bypass Damper No Controller "},{"$f":"'MZ - COBP Zones'!D17","v":0}]
[null,"MZ - COBP Zones","Damper",{"$f":"'MZ - COBP Zones'!B18","v":"RCG15B"},{"$f":"'MZ - COBP Zones'!C18","v":"15\" Round Zone/Bypass Damper No Controller "},{"$f":"'MZ - COBP Zones'!D18","v":0}]
[null,"MZ - COBP Zones","Damper",{"$f":"'MZ - COBP Zones'!B19","v":"RCG16B"},{"$f":"'MZ - COBP Zones'!C19","v":"16\" Round Zone/Bypass Damper No Controller "},{"$f":"'MZ - COBP Zones'!D19","v":0}]
[null,"MZ - COBP Zones","Damper",{"$f":"'MZ - COBP Zones'!B20","v":"RCG17B"},{"$f":"'MZ - COBP Zones'!C20","v":"17\" Round Zone/Bypass Damper No Controller "},{"$f":"'MZ - COBP Zones'!D20","v":0}]
[null,"MZ - COBP Zones","Damper",{"$f":"'MZ - COBP Zones'!B21","v":"RCG18B"},{"$f":"'MZ - COBP Zones'!C21","v":"18\" Round Zone/Bypass Damper No Controller "},{"$f":"'MZ - COBP Zones'!D21","v":0}]
[null,"MZ - COBP Zones","Damper With Controller",{"$f":"'MZ - COBP Zones'!B22","v":"RZV06Z"},{"$f":"'MZ - COBP Zones'!C22","v":"6\" Round Zone Damper LC-ZEC310-0 Controller "},{"$f":"'MZ - COBP Zones'!D22","v":0}]
[null,"MZ - COBP Zones","Damper With Controller",{"$f":"'MZ - COBP Zones'!B23","v":"RZV07Z"},{"$f":"'MZ - COBP Zones'!C23","v":"7\" Round Zone Damper LC-ZEC310-0 Controller "},{"$f":"'MZ - COBP Zones'!D23","v":0}]
[null,"MZ - COBP Zones","Damper With Controller",{"$f":"'MZ - COBP Zones'!B24","v":"RZV08Z"},{"$f":"'MZ - COBP Zones'!C24","v":"8\" Round Zone Damper LC-ZEC310-0 Controller "},{"$f":"'MZ - COBP Zones'!D24","v":0}]
[null,"MZ - COBP Zones","Damper With Controller",{"$f":"'MZ - COBP Zones'!B25","v":"RZV09Z"},{"$f":"'MZ - COBP Zones'!C25","v":"9\" Round Zone Damper LC-ZEC310-0 Controller "},{"$f":"'MZ - COBP Zones'!D25","v":0}]
[null,"MZ - COBP Zones","Damper With Controller",{"$f":"'MZ - COBP Zones'!B26","v":"RZV10Z"},{"$f":"'MZ - COBP Zones'!C26","v":"10\" Round Zone Damper LC-ZEC310-0 Controller "},{"$f":"'MZ - COBP Zones'!D26","v":0}]
[null,"MZ - COBP Zones","Damper With Controller",{"$f":"'MZ - COBP Zones'!B27","v":"RZV11Z"},{"$f":"'MZ - COBP Zones'!C27","v":"11\" Round Zone Damper LC-ZEC310-0 Controller "},{"$f":"'MZ - COBP Zones'!D27","v":0}]
[null,"MZ - COBP Zones","Damper With Controller",{"$f":"'MZ - COBP Zones'!B28","v":"RZV12Z"},{"$f":"'MZ - COBP Zones'!C28","v":"12\" Round Zone Damper LC-ZEC310-0 Controller "},{"$f":"'MZ - COBP Zones'!D28","v":0}]
[null,"MZ - COBP Zones","Damper With Controller",{"$f":"'MZ - COBP Zones'!B29","v":"RZV13Z"},{"$f":"'MZ - COBP Zones'!C29","v":"13\" Round Zone Damper LC-ZEC310-0 Controller "},{"$f":"'MZ - COBP Zones'!D29","v":0}]
[null,"MZ - COBP Zones","Damper With Controller",{"$f":"'MZ - COBP Zones'!B30","v":"RZV14Z"},{"$f":"'MZ - COBP Zones'!C30","v":"14\" Round Zone Damper LC-ZEC310-0 Controller "},{"$f":"'MZ - COBP Zones'!D30","v":0}]
[null,"MZ - COBP Zones","Damper With Controller",{"$f":"'MZ - COBP Zones'!B31","v":"RZV15Z"},{"$f":"'MZ - COBP Zones'!C31","v":"15\" Round Zone Damper LC-ZEC310-0 Controller "},{"$f":"'MZ - COBP Zones'!D31","v":0}]
[null,"MZ - COBP Zones","Damper With Controller",{"$f":"'MZ - COBP Zones'!B32","v":"RZV16Z"},{"$f":"'MZ - COBP Zones'!C32","v":"16\" Round Zone Damper LC-ZEC310-0 Controller "},{"$f":"'MZ - COBP Zones'!D32","v":0}]
[null,"MZ - COBP Zones","Damper With Controller",{"$f":"'MZ - COBP Zones'!B33","v":"RZV17Z"},{"$f":"'MZ - COBP Zones'!C33","v":"17\" Round Zone Damper LC-ZEC310-0 Controller "},{"$f":"'MZ - COBP Zones'!D33","v":0}]
[null,"MZ - COBP Zones","Damper With Controller",{"$f":"'MZ - COBP Zones'!B34","v":"RZV18Z"},{"$f":"'MZ - COBP Zones'!C34","v":"18\" Round Zone Damper LC-ZEC310-0 Controller "},{"$f":"'MZ - COBP Zones'!D34","v":0}]
[null,"MZ - COBP Zones","NS Sensor",{"$f":"'MZ - COBP Zones'!B39","v":"NSB8BTN340-0"},{"$f":"'MZ - COBP Zones'!C39","v":"Temp, Color Display, Setpoint, White, Logo"},{"$f":"'MZ - COBP Zones'!D39","v":0}]
[null,"MZ - COBP Zones","NS Sensor",{"$f":"'MZ - COBP Zones'!B40","v":"NSB8BTN341-0"},{"$f":"'MZ - COBP Zones'!C40","v":"Temp, Color Display, Setpoint, White, No Logo"},{"$f":"'MZ - COBP Zones'!D40","v":0}]
[null,"MZ - COBP Zones","NS Sensor",{"$f":"'MZ - COBP Zones'!B41","v":"NSB8BTN240-0"},{"$f":"'MZ - COBP Zones'!C41","v":"Temp, Monochrome Display, Setpoint, White, Logo"},{"$f":"'MZ - COBP Zones'!D41","v":0}]
[null,"MZ - COBP Zones","NS Sensor",{"$f":"'MZ - COBP Zones'!B42","v":"NSB8BTN242-0"},{"$f":"'MZ - COBP Zones'!C42","v":"Temp, Monochrome Display, Setpoint, Black, Logo"},{"$f":"'MZ - COBP Zones'!D42","v":0}]
[null,"MZ - COBP Zones","NS Sensor",{"$f":"'MZ - COBP Zones'!B43","v":"NSB8BTN241-0"},{"$f":"'MZ - COBP Zones'!C43","v":"Temp, Monochrome Display, Setpoint, White, No Logo"},{"$f":"'MZ - COBP Zones'!D43","v":0}]
[null,"MZ - COBP Zones","NS Sensor",{"$f":"'MZ - COBP Zones'!B44","v":"NSB8BTN040-0"},{"$f":"'MZ - COBP Zones'!C44","v":"Temp, No Display, White, Logo"},{"$f":"'MZ - COBP Zones'!D44","v":0}]
[null,"MZ - COBP Zones","NS Sensor",{"$f":"'MZ - COBP Zones'!B45","v":"NSB8BTN041-0"},{"$f":"'MZ - COBP Zones'!C45","v":"Temp, No Display, White, No Logo"},{"$f":"'MZ - COBP Zones'!D45","v":0}]
[null,"MZ - COBP Zones","NS Sensor",{"$f":"'MZ - COBP Zones'!B46","v":"NSB8BTN140-0"},{"$f":"'MZ - COBP Zones'!C46","v":"Temp, No Display\\Warmer\\Cooler, White, Logo"},{"$f":"'MZ - COBP Zones'!D46","v":0}]
[null,"MZ - COBP Zones","NS Sensor",{"$f":"'MZ - COBP Zones'!B47","v":"NSB8BTN142-0"},{"$f":"'MZ - COBP Zones'!C47","v":"Temp, No Display\\Warmer\\Cooler, Black, Logo"},{"$f":"'MZ - COBP Zones'!D47","v":0}]
[null,"MZ - COBP Zones","NS Sensor",{"$f":"'MZ - COBP Zones'!B48","v":"NSB8BTN141-0"},{"$f":"'MZ - COBP Zones'!C48","v":"Temp, No Display\\Warmer\\Cooler, White, No Logo"},{"$f":"'MZ - COBP Zones'!D48","v":0}]
[null,"MZ - COBP Zones","NS Sensor",{"$f":"'MZ - COBP Zones'!B49","v":"NSB8BTC340-0"},{"$f":"'MZ - COBP Zones'!C49","v":"Temp, CO2, Color Display, White Logo"},{"$f":"'MZ - COBP Zones'!D49","v":0}]
[null,"MZ - COBP Zones","NS Sensor",{"$f":"'MZ - COBP Zones'!B50","v":"NSB8BTC341-0"},{"$f":"'MZ - COBP Zones'!C50","v":"Temp, CO2, Color Display, White No Logo"},{"$f":"'MZ - COBP Zones'!D50","v":0}]
[null,"MZ - COBP Zones","NS Sensor",{"$f":"'MZ - COBP Zones'!B51","v":"NSB8BHN340-0"},{"$f":"'MZ - COBP Zones'!C51","v":"Temp, 3%RH, Color Display, White, Logo"},{"$f":"'MZ - COBP Zones'!D51","v":0}]
[null,"MZ - COBP Zones","NS Sensor",{"$f":"'MZ - COBP Zones'!B52","v":"NSB8BHN341-0"},{"$f":"'MZ - COBP Zones'!C52","v":"Temp, 3%RH, Color Display, White, No Logo"},{"$f":"'MZ - COBP Zones'!D52","v":0}]
[null,"MZ - COBP Zones","NS Sensor",{"$f":"'MZ - COBP Zones'!B53","v":"NSB8BHN240-0"},{"$f":"'MZ - COBP Zones'!C53","v":"Temp, 3%RH, Monochrome Display, White, Logo"},{"$f":"'MZ - COBP Zones'!D53","v":0}]
[null,"MZ - COBP Zones","NS Sensor",{"$f":"'MZ - COBP Zones'!B54","v":"NSB8BHN242-0"},{"$f":"'MZ - COBP Zones'!C54","v":"Temp, 3%RH, Monochrome Display, Black, Logo"},{"$f":"'MZ - COBP Zones'!D54","v":0}]
[null,"MZ - COBP Zones","NS Sensor",{"$f":"'MZ - COBP Zones'!B55","v":"NSB8BHN241-0"},{"$f":"'MZ - COBP Zones'!C55","v":"Temp, 3%RH, Monochrome Display, White, No Logo"},{"$f":"'MZ - COBP Zones'!D55","v":0}]
[null,"MZ - COBP Zones","NS Sensor",{"$f":"'MZ - COBP Zones'!B56","v":"NSB8BHN340-0"},{"$f":"'MZ - COBP Zones'!C56","v":"Temp, 3%RH, Color Display, White Logo"},{"$f":"'MZ - COBP Zones'!D56","v":0}]
[null,"MZ - COBP Zones","NS Sensor",{"$f":"'MZ - COBP Zones'!B57","v":"NSB8BHN341-0"},{"$f":"'MZ - COBP Zones'!C57","v":"Temp, 3%RH, Color Display, White No Logo"},{"$f":"'MZ - COBP Zones'!D57","v":0}]
[null,"MZ - COBP Zones","NS Sensor",{"$f":"'MZ - COBP Zones'!B58","v":"NSB8BHC240-0"},{"$f":"'MZ - COBP Zones'!C58","v":"Temp, 3%RH, CO2, Monochrome Display, Setpoint, White, Logo"},{"$f":"'MZ - COBP Zones'!D58","v":0}]
[null,"MZ - COBP Zones","NS Sensor",{"$f":"'MZ - COBP Zones'!B59","v":"NSB8BHC242-0"},{"$f":"'MZ - COBP Zones'!C59","v":"Temp, 3%RH, CO2, Monochrome Display, Setpoint, Black, Logo"},{"$f":"'MZ - COBP Zones'!D59","v":0}]
[null,"MZ - COBP Zones","NS Sensor",{"$f":"'MZ - COBP Zones'!B60","v":"NSB8BHC241-0"},{"$f":"'MZ - COBP Zones'!C60","v":"Temp, 3%RH, CO2, Monochrome Display, Setpoint, Black, No Logo"},{"$f":"'MZ - COBP Zones'!D60","v":0}]
[null,"MZ - COBP Zones","NS Sensor",{"$f":"'MZ - COBP Zones'!B61","v":"NSB8BHC340-0"},{"$f":"'MZ - COBP Zones'!C61","v":"Temp, 3%RH, CO2, Color Display, Setpoint, White, Logo"},{"$f":"'MZ - COBP Zones'!D61","v":0}]
[null,"MZ - COBP Zones","NS Sensor",{"$f":"'MZ - COBP Zones'!B62","v":"NSB8BHC341-0"},{"$f":"'MZ - COBP Zones'!C62","v":"Temp, 3%RH, CO2, Color Display, Setpoint, White, No Logo"},{"$f":"'MZ - COBP Zones'!D62","v":0}]
[null,"MZ - COBP Zones","NS Sensor",{"$f":"'MZ - COBP Zones'!B66","v":"TE-68NT-0N00S"},{"$f":"'MZ - COBP Zones'!C66","v":"Wall temperature sensor, 1k ohm, nickel with temperature occupancy button."},{"$f":"'MZ - COBP Zones'!D66","v":0}]
[null,"MZ - COBP Zones","NS Sensor",{"$f":"'MZ - COBP Zones'!B67","v":"TE-68NT-1N00S"},{"$f":"'MZ - COBP Zones'!C67","v":"Wall temperature sensor, 1k ohm,nickel with warmer/cooler (W/C) adjustment and temperature occupancy pushbutton."},{"$f":"'MZ - COBP Zones'!D67","v":0}]
[null,"MZ - COBP Zones","Actuator",{"$f":"'MZ - COBP Zones'!B71","v":"M9310-HGA-2"},{"$f":"'MZ - COBP Zones'!C71","v":"10NM Torque Non-Spring Return Damper Actuator"},{"$f":"'MZ - COBP Zones'!D71","v":0}]
[null,"MZ - COBP Zones","Power Supply",{"$f":"'MZ - COBP Zones'!B75","v":"Y65T42-0"},{"$f":"'MZ - COBP Zones'!C75","v":"120/208/240 to 24V XFR 40VA (Power for 2 Controllers)"},{"$f":"'MZ - COBP Zones'!D75","v":0}]
[null,"MZ - COBP Zones","Power Supply",{"$f":"'MZ - COBP Zones'!B76","v":"PSH100A"},{"$f":"'MZ - COBP Zones'!C76","v":"120V to 24V XFR, 100VA (Power for 6 Controllers)"},{"$f":"'MZ - COBP Zones'!D76","v":0}]
[null,"MZ - COBP Zones","Power Supply",{"$f":"'MZ - COBP Zones'!B77","v":"PSH300A"},{"$f":"'MZ - COBP Zones'!C77","v":"480/277/240/120V to 24V XFR, 3 Circuits 100VA each (Power for 18 Controllers)"},{"$f":"'MZ - COBP Zones'!D77","v":0}]
[null,"MZ - COBP Zones","Power Supply",{"$f":"'MZ - COBP Zones'!B78","v":"PSH500A"},{"$f":"'MZ - COBP Zones'!C78","v":"480/277/240/120V  to 24V XFR,5 Circuits 100VA each (Power for 30 Controllers)"},{"$f":"'MZ - COBP Zones'!D78","v":0}]
[null,"MZ- Bypass Damper","Bypass Controller",{"$f":"'MZ- Bypass Damper'!B7","v":"LC-BYP200-0"},{"$f":"'MZ- Bypass Damper'!C7","v":"Field Installed, Bypass Damper Controller - No Damper"},{"$f":"'MZ- Bypass Damper'!D7","v":0}]
[null,"MZ- Bypass Damper","Damper",{"$f":"'MZ- Bypass Damper'!B8","v":"RCG06B"},{"$f":"'MZ- Bypass Damper'!C8","v":"6\" Round Zone/Bypass Damper No Controller "},{"$f":"'MZ- Bypass Damper'!D8","v":0}]
[null,"MZ- Bypass Damper","Damper",{"$f":"'MZ- Bypass Damper'!B9","v":"RCG07B"},{"$f":"'MZ- Bypass Damper'!C9","v":"7\" Round Zone/Bypass Damper No Controller "},{"$f":"'MZ- Bypass Damper'!D9","v":0}]
[null,"MZ- Bypass Damper","Damper",{"$f":"'MZ- Bypass Damper'!B10","v":"RCG08B"},{"$f":"'MZ- Bypass Damper'!C10","v":"8\" Round Zone/Bypass Damper No Controller "},{"$f":"'MZ- Bypass Damper'!D10","v":0}]
[null,"MZ- Bypass Damper","Damper",{"$f":"'MZ- Bypass Damper'!B11","v":"RCG09B"},{"$f":"'MZ- Bypass Damper'!C11","v":"9\" Round Zone/Bypass Damper No Controller "},{"$f":"'MZ- Bypass Damper'!D11","v":0}]
[null,"MZ- Bypass Damper","Damper",{"$f":"'MZ- Bypass Damper'!B12","v":"RCG10B"},{"$f":"'MZ- Bypass Damper'!C12","v":"10\" Round Zone/Bypass Damper No Controller "},{"$f":"'MZ- Bypass Damper'!D12","v":0}]
[null,"MZ- Bypass Damper","Damper",{"$f":"'MZ- Bypass Damper'!B13","v":"RCG11B"},{"$f":"'MZ- Bypass Damper'!C13","v":"11\" Round Zone/Bypass Damper No Controller "},{"$f":"'MZ- Bypass Damper'!D13","v":0}]
[null,"MZ- Bypass Damper","Damper",{"$f":"'MZ- Bypass Damper'!B14","v":"RCG12B"},{"$f":"'MZ- Bypass Damper'!C14","v":"12\" Round Zone/Bypass Damper No Controller "},{"$f":"'MZ- Bypass Damper'!D14","v":0}]
[null,"MZ- Bypass Damper","Damper",{"$f":"'MZ- Bypass Damper'!B15","v":"RCG13B"},{"$f":"'MZ- Bypass Damper'!C15","v":"13\" Round Zone/Bypass Damper No Controller "},{"$f":"'MZ- Bypass Damper'!D15","v":0}]
[null,"MZ- Bypass Damper","Damper",{"$f":"'MZ- Bypass Damper'!B16","v":"RCG14B"},{"$f":"'MZ- Bypass Damper'!C16","v":"14\" Round Zone/Bypass Damper No Controller "},{"$f":"'MZ- Bypass Damper'!D16","v":0}]
[null,"MZ- Bypass Damper","Damper",{"$f":"'MZ- Bypass Damper'!B17","v":"RCG15B"},{"$f":"'MZ- Bypass Damper'!C17","v":"15\" Round Zone/Bypass Damper No Controller "},{"$f":"'MZ- Bypass Damper'!D17","v":0}]
[null,"MZ- Bypass Damper","Damper",{"$f":"'MZ- Bypass Damper'!B18","v":"RCG16B"},{"$f":"'MZ- Bypass Damper'!C18","v":"16\" Round Zone/Bypass Damper No Controller "},{"$f":"'MZ- Bypass Damper'!D18","v":0}]
[null,"MZ- Bypass Damper","Damper",{"$f":"'MZ- Bypass Damper'!B19","v":"RCG17B"},{"$f":"'MZ- Bypass Damper'!C19","v":"17\" Round Zone/Bypass Damper No Controller "},{"$f":"'MZ- Bypass Damper'!D19","v":0}]
[null,"MZ- Bypass Damper","Damper",{"$f":"'MZ- Bypass Damper'!B20","v":"RCG18B"},{"$f":"'MZ- Bypass Damper'!C20","v":"18\" Round Zone/Bypass Damper No Controller "},{"$f":"'MZ- Bypass Damper'!D20","v":0}]
[null,"MZ- Bypass Damper","Damper With Controller",{"$f":"'MZ- Bypass Damper'!B21","v":"RZV06Y"},{"$f":"'MZ- Bypass Damper'!C21","v":"6\" Round Bypass Damper LC-BYP200-0 Controller *"},{"$f":"'MZ- Bypass Damper'!D21","v":0}]
[null,"MZ- Bypass Damper","Damper With Controller",{"$f":"'MZ- Bypass Damper'!B22","v":"RZV07Y"},{"$f":"'MZ- Bypass Damper'!C22","v":"7\" Round Bypass Damper LC-BYP200-0 Controller *"},{"$f":"'MZ- Bypass Damper'!D22","v":0}]
[null,"MZ- Bypass Damper","Damper With Controller",{"$f":"'MZ- Bypass Damper'!B23","v":"RZV08Y"},{"$f":"'MZ- Bypass Damper'!C23","v":"8\" Round Bypass Damper LC-BYP200-0 Controller *"},{"$f":"'MZ- Bypass Damper'!D23","v":0}]
[null,"MZ- Bypass Damper","Damper With Controller",{"$f":"'MZ- Bypass Damper'!B24","v":"RZV09Y"},{"$f":"'MZ- Bypass Damper'!C24","v":"9\" Round Bypass Damper LC-BYP200-0 Controller *"},{"$f":"'MZ- Bypass Damper'!D24","v":0}]
[null,"MZ- Bypass Damper","Damper With Controller",{"$f":"'MZ- Bypass Damper'!B25","v":"RZV10Y"},{"$f":"'MZ- Bypass Damper'!C25","v":"10\" Round Bypass Damper LC-BYP200-0 Controller *"},{"$f":"'MZ- Bypass Damper'!D25","v":0}]
[null,"MZ- Bypass Damper","Damper With Controller",{"$f":"'MZ- Bypass Damper'!B26","v":"RZV11Y"},{"$f":"'MZ- Bypass Damper'!C26","v":"11\" Round Bypass Damper LC-BYP200-0 Controller *"},{"$f":"'MZ- Bypass Damper'!D26","v":0}]
[null,"MZ- Bypass Damper","Damper With Controller",{"$f":"'MZ- Bypass Damper'!B27","v":"RZV12Y"},{"$f":"'MZ- Bypass Damper'!C27","v":"12\" Round Bypass Damper LC-BYP200-0 Controller *"},{"$f":"'MZ- Bypass Damper'!D27","v":0}]
[null,"MZ- Bypass Damper","Damper With Controller",{"$f":"'MZ- Bypass Damper'!B28","v":"RZV13Y"},{"$f":"'MZ- Bypass Damper'!C28","v":"13\" Round Bypass Damper LC-BYP200-0 Controller *"},{"$f":"'MZ- Bypass Damper'!D28","v":0}]
[null,"MZ- Bypass Damper","Damper With Controller",{"$f":"'MZ- Bypass Damper'!B29","v":"RZV14Y"},{"$f":"'MZ- Bypass Damper'!C29","v":"14\" Round Bypass Damper LC-BYP200-0 Controller *"},{"$f":"'MZ- Bypass Damper'!D29","v":0}]
[null,"MZ- Bypass Damper","Damper With Controller",{"$f":"'MZ- Bypass Damper'!B30","v":"RZV15Y"},{"$f":"'MZ- Bypass Damper'!C30","v":"15\" Round Bypass Damper LC-BYP200-0 Controller *"},{"$f":"'MZ- Bypass Damper'!D30","v":0}]
[null,"MZ- Bypass Damper","Damper With Controller",{"$f":"'MZ- Bypass Damper'!B31","v":"RZV16Y"},{"$f":"'MZ- Bypass Damper'!C31","v":"16\" Round Bypass Damper LC-BYP200-0 Controller *"},{"$f":"'MZ- Bypass Damper'!D31","v":0}]
[null,"MZ- Bypass Damper","Damper With Controller",{"$f":"'MZ- Bypass Damper'!B32","v":"RZV17Y"},{"$f":"'MZ- Bypass Damper'!C32","v":"17\" Round Bypass Damper LC-BYP200-0 Controller *"},{"$f":"'MZ- Bypass Damper'!D32","v":0}]
[null,"MZ- Bypass Damper","Damper With Controller",{"$f":"'MZ- Bypass Damper'!B33","v":"RZV18Y"},{"$f":"'MZ- Bypass Damper'!C33","v":"18\" Round Bypass Damper LC-BYP200-0 Controller *"},{"$f":"'MZ- Bypass Damper'!D33","v":0}]
[null,"MZ- Bypass Damper","Pressure Sensor",{"$f":"'MZ- Bypass Damper'!B39","v":"DP140005U11D"},{"$f":"'MZ- Bypass Damper'!C39","v":"Low Differential Pressure Transducer 0-5 in WC, 0-5VDC (Required for each BYP200)"},{"$f":"'MZ- Bypass Damper'!D39","v":0}]
[null,"MZ- Bypass Damper","Pressure Probe",{"$f":"'MZ- Bypass Damper'!B40","v":"FTG18A-600R"},{"$f":"'MZ- Bypass Damper'!C40","v":"Duct Static Pressure Probe.  Need one per DPT"},{"$f":"'MZ- Bypass Damper'!D40","v":0}]
[null,"MZ- Bypass Damper","Actuator",{"$f":"'MZ- Bypass Damper'!B44","v":"M9310-HGA-2"},{"$f":"'MZ- Bypass Damper'!C44","v":"10NM Torque Non-Spring Return Damper Actuator"},{"$f":"'MZ- Bypass Damper'!D44","v":0}]
[null,"Adv. Application Controller","Controller",{"$f":"'Adv. Application Controller'!B7","v":"LC-VAC1000-0"},{"$f":"'Adv. Application Controller'!C7","v":"18 Point 24v, Application Controller with no application loaded"},{"$f":"'Adv. Application Controller'!D7","v":0}]
[null,"Adv. Application Controller","Controller",{"$f":"'Adv. Application Controller'!B8","v":"LC-VAC3000-0"},{"$f":"'Adv. Application Controller'!C8","v":"32 Point 24v, Application Controller with no application loaded"},{"$f":"'Adv. Application Controller'!D8","v":0}]
[null,"Adv. Application Controller","Exapansion Module",{"$f":"'Adv. Application Controller'!B9","v":"LC-IOM3711-0"},{"$f":"'Adv. Application Controller'!C9","v":"12 Point 24v, Expansion Controller for the VAC"},{"$f":"'Adv. Application Controller'!D9","v":0}]
[null,"Adv. Application Controller","Temp Sensor",{"$f":"'Adv. Application Controller'!B13","v":"TE-6311M-1"},{"$f":"'Adv. Application Controller'!C13","v":"8\" Duct Sensor Metal Enclosure, Nickel (Supply Air Required, Mixed Air optional)"},{"$f":"'Adv. Application Controller'!D13","v":0}]
[null,"Adv. Application Controller","Temp Sensor",{"$f":"'Adv. Application Controller'!B14","v":"TE-6315M-1"},{"$f":"'Adv. Application Controller'!C14","v":"Mixed Air Sensor, Nickel (Optional unless you have proportional heating & cooling & enconomization)"},{"$f":"'Adv. Application Controller'!D14","v":0}]
[null,"Adv. Application Controller","Temp Sensor",{"$f":"'Adv. Application Controller'!B15","v":"TE-6313P-1"},{"$f":"'Adv. Application Controller'!C15","v":"Outside Air Sensor, Nickel (Required for economiztion control)"},{"$f":"'Adv. Application Controller'!D15","v":0}]
[null,"Adv. Application Controller","Current Switch",{"$f":"'Adv. Application Controller'!B16","v":"CSDECM-C35200L0"},{"$f":"'Adv. Application Controller'!C16","v":"Fan Status-Current switch, Split Core, (0.15 A Fixed Switch Setpoint 0.15 to 200 A Range)(Optional)"},{"$f":"'Adv. Application Controller'!D16","v":0}]
[null,"Adv. Application Controller","Low Temp Sensor",{"$f":"'Adv. Application Controller'!B17","v":"A70HA-1C"},{"$f":"'Adv. Application Controller'!C17","v":"Low Temperature Alarm (Optional) (when you have water coils and economizer Required) "},{"$f":"'Adv. Application Controller'!D17","v":0}]
[null,"Adv. Application Controller","Sensor Bracket",{"$f":"'Adv. Application Controller'!B18","v":"TE-6001-8"},{"$f":"'Adv. Application Controller'!C18","v":"Required when installing a A70HA-1C (one per A70HA-1C)"},{"$f":"'Adv. Application Controller'!D18","v":0}]
[null,"Adv. Application Controller","Actuator",{"$f":"'Adv. Application Controller'!B19","v":"M9208-GGA-3"},{"$f":"'Adv. Application Controller'!C19","v":"OA or MA damper actuator 70in-lb spring return actuator proportional (Optional unless you are doing economization)"},{"$f":"'Adv. Application Controller'!D19","v":0}]
[null,"Adv. Application Controller","Actuator Kit",{"$f":"'Adv. Application Controller'!B20","v":"M9208-250"},{"$f":"'Adv. Application Controller'!C20","v":"Remote mounting kit with crankarm and damper linkage (Used when actuator is not directly mounted on a shaft)"},{"$f":"'Adv. Application Controller'!D20","v":0}]
[null,"Adv. Application Controller","Humidity Sensor",{"$f":"'Adv. Application Controller'!B21","v":"HE-69130NP-0"},{"$f":"'Adv. Application Controller'!C21","v":"ZN-H, Zone Humidity Duct Humidity Sensor w Temp Sensor (3%) (Can be used in place of an NS Sensor)"},{"$f":"'Adv. Application Controller'!D21","v":0}]
[null,"Adv. Application Controller","CO2 Detector",{"$f":"'Adv. Application Controller'!B22","v":"CD-P1000-00-00U"},{"$f":"'Adv. Application Controller'!C22","v":"RA-Q, Return Air Quality Duct CO2 Sensor, 0-2000 PPM, 0 - 10 VDC (For DCV if you don't have CO2 on the NS Sensor)"},{"$f":"'Adv. Application Controller'!D22","v":0}]
[null,"Adv. Application Controller","Pressure Sensor",{"$f":"'Adv. Application Controller'!B23","v":"P32AC-2C"},{"$f":"'Adv. Application Controller'!C23","v":"Fan Status-Differential Pressure Switch, Single-Pole, Double-Throw (SPDT), 0.05 to 5 in. W.C."},{"$f":"'Adv. Application Controller'!D23","v":0}]
[null,"Adv. Application Controller","Pressure Probe",{"$f":"'Adv. Application Controller'!B24","v":"FTG18A-600R"},{"$f":"'Adv. Application Controller'!C24","v":"Duct Static Pressure Probe Kit: 4 in. Flanged Sensing Tube (required when installing a P32AC-2C)"},{"$f":"'Adv. Application Controller'!D24","v":0}]
[null,"Adv. Application Controller","Humidity Control",{"$f":"'Adv. Application Controller'!B25","v":"HL-69158NP-0 "},{"$f":"'Adv. Application Controller'!C25","v":"Multi-function High limit or proportional override humidity controller (required when you have a humidifier)"},{"$f":"'Adv. Application Controller'!D25","v":0}]
[null,"Adv. Application Controller","NS Sensor",{"$f":"'Adv. Application Controller'!B29","v":"NSB8BTN340-0"},{"$f":"'Adv. Application Controller'!C29","v":"Temp, Color Display, Setpoint, White, Logo"},{"$f":"'Adv. Application Controller'!D29","v":0}]
[null,"Adv. Application Controller","NS Sensor",{"$f":"'Adv. Application Controller'!B30","v":"NSB8BTN341-0"},{"$f":"'Adv. Application Controller'!C30","v":"Temp, Color Display, Setpoint, White, No Logo"},{"$f":"'Adv. Application Controller'!D30","v":0}]
[null,"Adv. Application Controller","NS Sensor",{"$f":"'Adv. Application Controller'!B31","v":"NSB8BTN240-0"},{"$f":"'Adv. Application Controller'!C31","v":"Temp, Monochrome Display, Setpoint, White, Logo"},{"$f":"'Adv. Application Controller'!D31","v":0}]
[null,"Adv. Application Controller","NS Sensor",{"$f":"'Adv. Application Controller'!B32","v":"NSB8BTN242-0"},{"$f":"'Adv. Application Controller'!C32","v":"Temp, Monochrome Display, Setpoint, Black, Logo"},{"$f":"'Adv. Application Controller'!D32","v":0}]
[null,"Adv. Application Controller","NS Sensor",{"$f":"'Adv. Application Controller'!B33","v":"NSB8BTN241-0"},{"$f":"'Adv. Application Controller'!C33","v":"Temp, Monochrome Display, Setpoint, White, No Logo"},{"$f":"'Adv. Application Controller'!D33","v":0}]
[null,"Adv. Application Controller","NS Sensor",{"$f":"'Adv. Application Controller'!B34","v":"NSB8BTN040-0"},{"$f":"'Adv. Application Controller'!C34","v":"Temp, No Display, White, Logo"},{"$f":"'Adv. Application Controller'!D34","v":0}]
[null,"Adv. Application Controller","NS Sensor",{"$f":"'Adv. Application Controller'!B35","v":"NSB8BTN041-0"},{"$f":"'Adv. Application Controller'!C35","v":"Temp, No Display, White, No Logo"},{"$f":"'Adv. Application Controller'!D35","v":0}]
[null,"Adv. Application Controller","NS Sensor",{"$f":"'Adv. Application Controller'!B36","v":"NSB8BTN140-0"},{"$f":"'Adv. Application Controller'!C36","v":"Temp, No Display\\Warmer\\Cooler, White, Logo"},{"$f":"'Adv. Application Controller'!D36","v":0}]
[null,"Adv. Application Controller","NS Sensor",{"$f":"'Adv. Application Controller'!B37","v":"NSB8BTN142-0"},{"$f":"'Adv. Application Controller'!C37","v":"Temp, No Display\\Warmer\\Cooler, Black, Logo"},{"$f":"'Adv. Application Controller'!D37","v":0}]
[null,"Adv. Application Controller","NS Sensor",{"$f":"'Adv. Application Controller'!B38","v":"NSB8BTN141-0"},{"$f":"'Adv. Application Controller'!C38","v":"Temp, No Display\\Warmer\\Cooler, White, No Logo"},{"$f":"'Adv. Application Controller'!D38","v":0}]
[null,"Adv. Application Controller","NS Sensor",{"$f":"'Adv. Application Controller'!B39","v":"NSB8BTC340-0"},{"$f":"'Adv. Application Controller'!C39","v":"Temp, CO2, Color Display, White Logo"},{"$f":"'Adv. Application Controller'!D39","v":0}]
[null,"Adv. Application Controller","NS Sensor",{"$f":"'Adv. Application Controller'!B40","v":"NSB8BTC341-0"},{"$f":"'Adv. Application Controller'!C40","v":"Temp, CO2, Color Display, White No Logo"},{"$f":"'Adv. Application Controller'!D40","v":0}]
[null,"Adv. Application Controller","NS Sensor",{"$f":"'Adv. Application Controller'!B41","v":"NSB8BHN340-0"},{"$f":"'Adv. Application Controller'!C41","v":"Temp, 3%RH, Color Display, White, Logo"},{"$f":"'Adv. Application Controller'!D41","v":0}]
[null,"Adv. Application Controller","NS Sensor",{"$f":"'Adv. Application Controller'!B42","v":"NSB8BHN341-0"},{"$f":"'Adv. Application Controller'!C42","v":"Temp, 3%RH, Color Display, White, No Logo"},{"$f":"'Adv. Application Controller'!D42","v":0}]
[null,"Adv. Application Controller","NS Sensor",{"$f":"'Adv. Application Controller'!B43","v":"NSB8BHN240-0"},{"$f":"'Adv. Application Controller'!C43","v":"Temp, 3%RH, Monochrome Display, White, Logo"},{"$f":"'Adv. Application Controller'!D43","v":0}]
[null,"Adv. Application Controller","NS Sensor",{"$f":"'Adv. Application Controller'!B44","v":"NSB8BHN242-0"},{"$f":"'Adv. Application Controller'!C44","v":"Temp, 3%RH, Monochrome Display, Black, Logo"},{"$f":"'Adv. Application Controller'!D44","v":0}]
[null,"Adv. Application Controller","NS Sensor",{"$f":"'Adv. Application Controller'!B45","v":"NSB8BHN241-0"},{"$f":"'Adv. Application Controller'!C45","v":"Temp, 3%RH, Monochrome Display, White, No Logo"},{"$f":"'Adv. Application Controller'!D45","v":0}]
[null,"Adv. Application Controller","NS Sensor",{"$f":"'Adv. Application Controller'!B46","v":"NSB8BHN340-0"},{"$f":"'Adv. Application Controller'!C46","v":"Temp, 3%RH, Color Display, White Logo"},{"$f":"'Adv. Application Controller'!D46","v":0}]
[null,"Adv. Application Controller","NS Sensor",{"$f":"'Adv. Application Controller'!B47","v":"NSB8BHN341-0"},{"$f":"'Adv. Application Controller'!C47","v":"Temp, 3%RH, Color Display, White No Logo"},{"$f":"'Adv. Application Controller'!D47","v":0}]
[null,"Adv. Application Controller","NS Sensor",{"$f":"'Adv. Application Controller'!B48","v":"NSB8BHC240-0"},{"$f":"'Adv. Application Controller'!C48","v":"Temp, 3%RH, CO2, Monochrome Display, Setpoint, White, Logo"},{"$f":"'Adv. Application Controller'!D48","v":0}]
[null,"Adv. Application Controller","NS Sensor",{"$f":"'Adv. Application Controller'!B49","v":"NSB8BHC242-0"},{"$f":"'Adv. Application Controller'!C49","v":"Temp, 3%RH, CO2, Monochrome Display, Setpoint, Black, Logo"},{"$f":"'Adv. Application Controller'!D49","v":0}]
[null,"Adv. Application Controller","NS Sensor",{"$f":"'Adv. Application Controller'!B50","v":"NSB8BHC241-0"},{"$f":"'Adv. Application Controller'!C50","v":"Temp, 3%RH, CO2, Monochrome Display, Setpoint, Black, No Logo"},{"$f":"'Adv. Application Controller'!D50","v":0}]
[null,"Adv. Application Controller","NS Sensor",{"$f":"'Adv. Application Controller'!B51","v":"NSB8BHC340-0"},{"$f":"'Adv. Application Controller'!C51","v":"Temp, 3%RH, CO2, Color Display, Setpoint, White, Logo"},{"$f":"'Adv. Application Controller'!D51","v":0}]
[null,"Adv. Application Controller","NS Sensor",{"$f":"'Adv. Application Controller'!B52","v":"NSB8BHC341-0"},{"$f":"'Adv. Application Controller'!C52","v":"Temp, 3%RH, CO2, Color Display, Setpoint, White, No Logo"},{"$f":"'Adv. Application Controller'!D52","v":0}]
[null,"Fan Coil Units","Thermostat",{"$f":"'Fan Coil Units'!B7","v":"TEC3612-14-000"},{"$f":"'Fan Coil Units'!C7","v":"Fan Coil On/Off or Floating Outputs, JCI Logo, White, Humidity"},{"$f":"'Fan Coil Units'!D7","v":0}]
[null,"Fan Coil Units","Thermostat",{"$f":"'Fan Coil Units'!B8","v":"TEC3613-14-000"},{"$f":"'Fan Coil Units'!C8","v":"Fan Coil On/Off or Floating Outputs, JCI Logo, White, Humidity, Occupancy"},{"$f":"'Fan Coil Units'!D8","v":0}]
[null,"Fan Coil Units","Thermostat",{"$f":"'Fan Coil Units'!B9","v":"TEC3612-13-000"},{"$f":"'Fan Coil Units'!C9","v":"Fan Coil On/Off or Floating Outputs, JCI Logo, Black, Humidity"},{"$f":"'Fan Coil Units'!D9","v":0}]
[null,"Fan Coil Units","Thermostat",{"$f":"'Fan Coil Units'!B10","v":"TEC3613-14-000"},{"$f":"'Fan Coil Units'!C10","v":"Fan Coil On/Off or Floating Outputs, JCI Logo, Black, Humidity, Occupancy"},{"$f":"'Fan Coil Units'!D10","v":0}]
[null,"Fan Coil Units","Thermostat",{"$f":"'Fan Coil Units'!B11","v":"TEC3612-16-000"},{"$f":"'Fan Coil Units'!C11","v":"Fan Coil On/Off or Floating Outputs, No Logo, White, Humidity"},{"$f":"'Fan Coil Units'!D11","v":0}]
[null,"Fan Coil Units","Thermostat",{"$f":"'Fan Coil Units'!B12","v":"TEC3622-14-000"},{"$f":"'Fan Coil Units'!C12","v":"Fan Coil Proportional Outputs, 0-10VDC, JCI Logo, White, Humidity"},{"$f":"'Fan Coil Units'!D12","v":0}]
[null,"Fan Coil Units","Thermostat",{"$f":"'Fan Coil Units'!B13","v":"TEC3623-14-000"},{"$f":"'Fan Coil Units'!C13","v":"Fan Coil Proportional Outputs, 0-10VDC, JCI Logo, White, Humidity, Occupancy"},{"$f":"'Fan Coil Units'!D13","v":0}]
[null,"Fan Coil Units","Thermostat",{"$f":"'Fan Coil Units'!B14","v":"TEC3622-13-000"},{"$f":"'Fan Coil Units'!C14","v":"Fan Coil Proportional Outputs, 0-10VDC, JCI Logo, Black, Humidity"},{"$f":"'Fan Coil Units'!D14","v":0}]
[null,"Fan Coil Units","Thermostat",{"$f":"'Fan Coil Units'!B15","v":"TEC3622-16-000"},{"$f":"'Fan Coil Units'!C15","v":"Fan Coil Proportional Outputs, 0-10VDC, No Logo, White, Humidity"},{"$f":"'Fan Coil Units'!D15","v":0}]
[null,"Fan Coil Units","Temp Sensor",{"$f":"'Fan Coil Units'!B19","v":"TE-6311M-1"},{"$f":"'Fan Coil Units'!C19","v":"8\" Supply Air Duct Sensor, Metal Enclosure, Nickel (Optional for RTU, Furnace, Heat Pumps)"},{"$f":"'Fan Coil Units'!D19","v":0}]
[null,"Fan Coil Units","Temp Sensor",{"$f":"'Fan Coil Units'!B20","v":"TE-68NT-0N00S"},{"$f":"'Fan Coil Units'!C20","v":"Remote Indoor Wall Temperature Sensor, 1k ohm, Nickel (Optional, up to 3 for averaging)"},{"$f":"'Fan Coil Units'!D20","v":0}]
[null,"Fan Coil Units","Current Switch",{"$f":"'Fan Coil Units'!B21","v":"CSD-CF0A0-1"},{"$f":"'Fan Coil Units'!C21","v":"Fan Status current switch, Split Core, 0.15 A Fixed Switch Setpoint 0.15 to 200 A Range (Optional)"},{"$f":"'Fan Coil Units'!D21","v":0}]
[null,"Fan Coil Units","Wall Plate",{"$f":"'Fan Coil Units'!B22","v":"TEC-WALLPLT"},{"$f":"'Fan Coil Units'!C22","v":"TEC3000 Wall Plate (Optional to cover larger openings)"},{"$f":"'Fan Coil Units'!D22","v":0}]
[null,"Lighting","Controller",{"$f":"Lighting!B7","v":"LC-VAC1001-0"},{"$f":"Lighting!C7","v":"18 Point 24v, Application Controller with Lighting Application"},{"$f":"Lighting!D7","v":0}]
[null,"Lighting","Light Sensor",{"$f":"Lighting!B12","v":"MK7-B-CR-0/10"},{"$f":"Lighting!C12","v":"Outdoor Light Level Sensor, 0-250 Ft Candles"},{"$f":"Lighting!D12","v":0}]
[null,"Lighting","Light Sensor",{"$f":"Lighting!B13","v":"MK7-B-CCF-0/10"},{"$f":"Lighting!C13","v":"Indoor Light Level Sensor, 0-100 Ft Candles"},{"$f":"Lighting!D13","v":0}]
[null,"Lighting","Panel",{"$f":"Lighting!B17","v":"LC-VLP100-0"},{"$f":"Lighting!C17","v":"Verasys Lighting Panel with Lighting Controller, no relays, no contactors, 16in W x 20in H x 6-5/8 D"},{"$f":"Lighting!D17","v":0}]
[null,"Lighting","Panel",{"$f":"Lighting!B18","v":"LC-VLP110-0"},{"$f":"Lighting!C18","v":"Verasys Lighting Panel with Lighting Controller, with nine 15A SPST relays, no contactors,\n24in W x 24in H x 6-5/8 D"},{"$f":"Lighting!D18","v":0}]
[null,"Lighting","Panel",{"$f":"Lighting!B19","v":"LC-VLP120-0"},{"$f":"Lighting!C19","v":"Verasys Lighting Panel with Lighting Controller, with nine 15A SPST relays, \nwith nine contactors (600 V max), 24in W x 36in H x 6-5/8 D"},{"$f":"Lighting!D19","v":0}]